{"text_format":"1","workbook":"xlsx","n_sheets":20,"sheets":["Cover Page \"HUB\"","Supplier Standards","Composition","Chemical_Control_Laws","Phys_Chem_Props","Global_Rqmnts","USA_Canada","EU","REACH","Asia_Pacific","Japan","Korea","Mexico","Chemicals_of_Concern","Metal_Content","Automotive","Health_Care","Separation_Purification","REF","Template History"],"not_rendered":{"charts":0,"images":3,"macros":1,"external_links":1,"defined_names":141,"comments":0,"pivot_tables":0},"unopened":[],"bounds":{"document_bytes":16777216,"sheet_cells":100000,"rows_first":2000,"rows_last":500,"rows_between":2000,"halvings":0,"cell_chars":16384,"cell_head_chars":4096},"cells_cut":0,"cells_raw":0,"read":"whole","date_system":"1900"}

{"sheet":"Cover Page \"HUB\"","index":0,"n_rows":59,"n_cols":8,"rows_kept":59,"cut":false,"hidden":false,"merged":[[0,0,0,1],[58,0,58,1],[37,0,37,1],[42,0,43,0],[9,0,9,1],[11,0,11,1],[16,0,16,1],[39,0,39,1]]}
["           Raw Material Information Form (RMIF)"]
[]
["Version 1.40; May 2022","3M Confidential"]
[]
["SUPPLIER/ DISTRIBUTOR NAME:"]
["MANUFACTURER NAME (if different from above)"]
["PRODUCT TRADENAME:"]
["3M ID Number/s (xx-xxxx-xxxx-x)\n\n3M SAP Numbers (xxxxxxxxxx)"]
[]
["3M requires suppliers to provide the information requested on the individual worksheets (appendices) to enable us to determine that 3M products containing your material will comply with global regulatory requirements. "]
[]
["This document is required in addition to the Material Safety Data Sheet (MSDS). Please provide additional Regulatory information (E.g. country specific classification, transportation classification, agency certifications (FDA, UL, etc.) if available."]
[]
["Please make sure Macros are enabled: "]
["MS Office Button (upper left corner) -> Excel options -> Trust Center -> Trust Center Settings -> Macro Settings -> Enable all Macros"]
[]
["Please always scroll down to the indicated end of a worksheet to ensure all questions are being completed.\nPlease return the completed form signed and in full to the 3M contact shown below.\n"]
[]
["Appendices to be selected by 3M PRL\n(Appendix names are 'hyperlinked'. Click the name of a required appendix below in order to 'jump' to the appendix directly.)","Please select required appendices (Yes / No)\nAppendix worksheets will be hidden / unhidden for editing depending on your selection","Appendix Done?"]
["Composition_Appendix","Yes"]
["Chemical_Control_Laws","Yes"]
["Physical & Chemical_Properties_Appendix","No"]
["Global_Requirements_Appendix","Yes"]
["USA_Canada_Appendix","No"]
["EU_Appendix","Yes"]
["REACH Appendix","Yes"]
["Asia_Pacific_Appendix","No"]
["Japan_Appendix","No"]
["Korea_Appendix","No"]
["Mexico_Appendix","No"]
["Chemicals_of_Concern_Appendix","Yes"]
["Metal_Content_Appendix","Yes"]
["Automotive_Appendix (required by I&TB Division only)","Yes"]
["Health_Care_Appendix (required by Health Care Div. only)","Yes"]
["Separation_Purification_Appendix (required by SPSD only)","Yes"]
[]
[]
["If there are changes to your material or to the manufacturing processes that may affect the material in the future or to regulations that may impact the material’s regulatory status, we require that you re-submit this document with the appropriately updated MSDS to the 3M Contact below."]
[]
["Please also adhere to the 3M Supplier Standards enclosed."]
[]
["Prepared by:"]
["Supplier Regulatory or Health / Safety Contact","3M Contact*"]
[null,"    * To be completed by 3M prior to dispatching the form"]
["Name:     ","Name:      "]
["Position:      ","Position: "]
["Address:","Address:"]
["     ","               "]
["     "]
["     "]
["Phone:      ","Phone:"]
["Fax:      ","Fax:      "]
["E-Mail:      ","E-Mail:      @mmm.com"]
["Supplier certifies that the following information is accurate, that supplier will update 3M if the information changes, and that I am authorized to sign on behalf of the supplier."]
["Signed:                                                                         \nPlease do not miss to sign. Thank You.","Signed:      "]
["Date:           ","Date:      "]
[null,null,null,null,null,null,null,"Pls_Select"]
[]
["END OF SHEET"]

{"sheet":"Supplier Standards","index":1,"n_rows":11,"n_cols":1,"rows_kept":11,"cut":false,"hidden":false,"merged":[]}
["Supplier Standards"]
[]
["Please refer to 3M Supplier Direct for current information on supplier standards."]
[]
["Link to 3M Supplier Direct: "]
["https://www.3m.com/3M/en_US/suppliers-direct/"]
[]
["The following link within Supplier Direct provides further details on 3M Regulatory Provisions: "]
["https://www.3m.com/3M/en_US/suppliers-direct/supplier-requirements/contract-provisions/"]
[]
["The screenshot below shows information that can be accessed on the 3M Supplier Direct Contract Provisions webpage:"]

{"sheet":"Composition","index":2,"n_rows":45,"n_cols":9,"rows_kept":45,"cut":false,"hidden":false,"merged":[[3,0,3,8],[5,0,5,8],[41,0,41,8],[44,0,44,8],[40,0,40,8],[34,0,34,8],[33,0,33,8],[37,0,37,8]]}
["Composition Information"]
[null,null,null,null,null,null,null,null,"3M Confidential"]
[]
["Please complete the table below listing the chemical names and CAS numbers for 100% of the intentionally added components in your material either as a range (not exceeding 10% for each component) or typical values."]
[]
["If CAS numbers cannot be provided, please provide generic descriptions of components. CAS numbers for proprietary components will be protected and used for regulatory purposes only.  "]
[]
["In addition, please include known residuals, by-products and/or impurities"]
[]
["CAS #","Trade Secret\nY/N?","Chemical Name","% Min","% Max","% Typ","Ingredient, Residual, \nBy-product, Impurity*?","Nano-Particle**?","Comment"]
[null,"Select",null,null,null,null,"Select","Select"]
[null,"Select",null,null,null,null,"Select","Select"]
[null,"Select",null,null,null,null,"Select","Select"]
[null,"Select",null,null,null,null,"Select","Select"]
[null,"Select",null,null,null,null,"Select","Select"]
[null,"Select",null,null,null,null,"Select","Select"]
[null,"Select",null,null,null,null,"Select","Select"]
[null,"Select",null,null,null,null,"Select","Select"]
[null,"Select",null,null,null,null,"Select","Select"]
[null,"Select",null,null,null,null,"Select","Select"]
[null,"Select",null,null,null,null,"Select","Select"]
[null,"Select",null,null,null,null,"Select","Select"]
[null,"Select",null,null,null,null,"Select","Select"]
[null,"Select",null,null,null,null,"Select","Select"]
[null,"Select",null,null,null,null,"Select","Select"]
[null,"Select",null,null,null,null,"Select","Select"]
[null,"Select",null,null,null,null,"Select","Select"]
[null,"Select",null,null,null,null,"Select","Select"]
[null,"Select",null,null,null,null,"Select","Select"]
[null,"Select",null,null,null,null,"Select","Select"]
[null,"Select",null,null,null,null,"Select","Select"]
[]
[]
["* Ingredient: A chemical substance intentionally formed or present;\nResidual: A substance remaining after distillation, evaporation, filtration or other purification method;\nBy-product: A secondary or incidental product derived from a manufacturing process or chemical reaction;\nImpurity: A chemical substance unintentionally formed or present with another chemical substance."]
["** Nanoparticles are defined here as intentionally produced solid particles having at least one dimension <100 nanometers (nm). Please answer “Yes” if more than 1% of the primary particle size distribution by weight or volume of the chemical meets the nanoparticle definition, and enter in the comment field any known nanoparticle characterization information, including where available: particle size distribution, median particle size, particle shape, surface treatment or other surface properties, water solubility, crystalline structure, whether the particles are free flowing or bound in a matrix, and agglomerate size."]
[]
[]
["END OF SHEET"]
[]
[]
["* Ingredient: A chemical substance intentionally formed or present;\nResidual: A substance remaining after distillation, evaporation, filtration or other purification method;\nBy-product: A secondary or incidental product derived from a manufacturing process or chemical reaction;\nImpurity: A chemical substance unintentionally formed or present with another chemical substance."]
["* Nanoparticles are defined here as intentionally produced solid particles having at least one dimension <100 nanometers (nm). Please answer “Yes” if more than 1% of the primary particle size distribution by weight or volume of the chemical meets the nanoparticle definition, and enter in the comment field any known nanoparticle characterization information, including where available: particle size distribution, median particle size, particle shape, surface treatment or other surface properties, water solubility, crystalline structure, whether the particles are free flowing or bound in a matrix, and agglomerate size."]
[]
[]
["END OF SHEET"]

{"sheet":"Chemical_Control_Laws","index":3,"n_rows":73,"n_cols":9,"rows_kept":73,"cut":false,"hidden":false,"merged":[[29,4,30,4],[31,4,32,4],[37,2,38,2],[31,2,32,2],[44,1,45,2],[39,0,39,7],[41,0,42,0],[41,1,42,2],[41,3,42,7],[35,1,36,1],[35,2,36,2],[35,3,36,3],[35,4,36,4],[35,5,36,5],[35,7,36,7],[3,0,3,7],[7,0,7,7],[13,7,14,7],[17,7,18,7],[19,7,20,7],[11,0,12,0],[9,0,9,7],[21,7,22,7],[11,5,12,5],[11,7,12,7],[11,1,11,2],[19,4,20,4],[21,4,22,4],[13,1,14,1],[13,3,14,3],[17,3,18,3],[19,3,20,3],[17,2,18,2],[19,2,20,2],[17,1,18,1],[19,1,20,1],[13,2,14,2],[21,2,22,2],[21,1,22,1],[53,1,54,2],[53,0,54,0],[53,3,54,7],[19,6,20,6],[21,6,22,6],[23,6,24,6],[11,3,11,4],[13,5,14,5],[17,5,18,5],[19,5,20,5],[21,5,22,5],[13,4,14,4],[17,4,18,4],[21,3,22,3],[11,6,12,6],[13,6,14,6],[17,6,18,6],[29,1,30,1],[27,4,28,4],[25,6,26,6],[27,6,28,6],[44,3,45,7],[29,5,30,5],[31,5,32,5],[23,3,24,4],[23,7,24,7],[59,0,59,5],[61,0,61,5],[25,7,26,7],[27,7,28,7],[29,7,30,7],[31,7,32,7],[25,2,26,2],[27,2,28,2],[29,2,30,2],[31,1,32,1],[44,0,45,0],[33,1,34,1],[37,1,38,1],[25,4,26,4],[29,6,30,6],[31,6,32,6],[33,6,34,6],[43,0,43,7],[33,2,34,2],[35,6,36,6],[37,6,38,6],[47,0,47,7],[72,0,72,7],[15,1,16,2],[15,3,16,4],[68,0,68,7],[23,5,24,5],[37,3,38,3],[25,3,26,3],[27,3,28,3],[29,3,30,3],[31,3,32,3],[33,3,34,3],[33,4,34,4],[37,4,38,4],[65,0,65,5],[33,7,34,7],[37,7,38,7],[25,5,26,5],[27,5,28,5],[63,0,63,5],[33,5,34,5],[37,5,38,5],[25,1,26,1],[27,1,28,1],[23,1,24,2]]}
["Chemical Control Laws"]
[null,null,null,null,null,null,null,"3M Confidential"]
[]
["Is your material (all components) listed on the country specific chemical inventories in the table below?"]
[]
["If your material is exempt because it is an article, please specify below."]
[]
["If your material contains chemical component(s), including impurities, which are regulated or banned in a listed country, please provide an explanation in the table below."]
[]
["*If your material contains chemical component(s), using identifiers not listed in the Composition tab, please note this in the Alternate Identifiers column. If additional space is required for multiple components, please use the comments section or the Composition tab."]
[]
["Country\n(high-lighted only; not needed if \nstriked-through)","Inventory?",null,"Notification in progress?",null,"Exempt","*Alternate Identifiers             (e.g. CAS#, PMN#, EC#/EC List#)","Comments\n(e.g. CAS # of banned chemical, exempt for article, polymer etc.)"]
[null,"Yes","No","Yes","No"]
["Australia 1",null,null,null,null,null,null,null,{"$f":"Asia_Pacific_Appendix","v":"No"}]
["(AICS)",null,null,null,null,null,null,null,{"$f":"Asia_Pacific_Appendix","v":"No"}]
["Brazil","not applicable",null,"not applicable",null,"Article?",null,"Article?"]
[null,null,null,null,null,null,null,"Please specify physical form (e.g. roll, sheet, block)"]
["Canada 2",null,null,null,null,null,null,"Note: Cannot be YES for DSL & NDSL",{"$f":"USA_Canada_Appendix","v":"No"}]
["(DSL) ",null,null,null,null,null,null,null,{"$f":"USA_Canada_Appendix","v":"No"}]
["Canada 2",null,null,null,null,null,null,"Note: Cannot be YES for DSL & NDSL",{"$f":"USA_Canada_Appendix","v":"No"}]
["(NDSL)",null,null,null,null,null,null,null,{"$f":"USA_Canada_Appendix","v":"No"}]
["China 3",null,null,null,null,null,null,null,{"$f":"Asia_Pacific_Appendix","v":"No"}]
["(IECSC)",null,null,null,null,null,null,null,{"$f":"Asia_Pacific_Appendix","v":"No"}]
["Europe 4","not applicable\n(see REACH tab)",null,"not applicable\n(see REACH tab)",null,null,null,"Examples for Exempt:  Polymer, Annex IV, Annex V, etc.",{"$f":"EU_Appendix","v":"Yes"}]
["(REACH)",null,null,null,null,null,null,null,{"$f":"EU_Appendix","v":"Yes"}]
["Japan 5",null,null,null,null,null,null,null,{"$f":"Japan_Appendix","v":"No"}]
["(METI/CSCL)",null,null,null,null,null,null,null,{"$f":"Japan_Appendix","v":"No"}]
["Japan 6",null,null,null,null,null,null,null,{"$f":"Japan_Appendix","v":"No"}]
["(MHLW/ISHL)",null,null,null,null,null,null,null,{"$f":"Japan_Appendix","v":"No"}]
["Korea7 ",null,null,null,null,null,null,null,{"$f":"Asia_Pacific_Appendix","v":"No"}]
["(KECI)",null,null,null,null,null,null,null,"No"]
["New Zealand*",null,null,null,null,null,null,"Note: Impurities, by-products, non-hazardous chemicals and articles are exempted. \n* Please add additional information such as “May use as single component under group standard”, “Use only in product covered by group standard”, or “HSNO Approved” if answered as “Yes”\nRef: http://www.epa.govt.nz/search-databases/Pages/nzioc-search.aspx","No"]
["(NZIoC)",null,null,null,null,null,null,null,"No"]
["Philippines",null,null,null,null,null,null,null,"No"]
["(PICCS)",null,null,null,null,null,null,null,"No"]
["Taiwan12"]
["(TCSI)"]
["USA13",null,null,null,null,null,null,null,{"$f":"USA_Canada_Appendix","v":"No"}]
["(TSCA)",null,null,null,null,null,null,null,{"$f":"USA_Canada_Appendix","v":"No"}]
["If TSCA “Yes”, does your material contain any components that have been designated \"Inactive\" of the TSCA Inventory? See the following link for more information:  "]
["https://www.epa.gov/tsca-inventory/how-access-tsca-inventory"]
["Pls_Select","If Yes, provide CAS number(s) or Accession number(s):"]
[null,null,null,null,null,null,null,null,{"$f":"USA_Canada_Appendix","v":"No"}]
["If TSCA “Yes”, is your material subject to any Test Rule, Consent Order, Significant New Use Rule (SNUR) or Ban under TSCA?  ",null,null,null,null,null,null,null,{"$f":"USA_Canada_Appendix","v":"No"}]
["Pls_Select","Please explain:",null,null,null,null,null,null,{"$f":"USA_Canada_Appendix","v":"No"}]
[]
[]
["Does your material contain any substances that are long-chain perfluoroalkyl carboxlates (LCPFACs)? LCPFACs are defined as the following chemical structures, where 5 < n <21 or 6 < m < 21:"]
["CF3(CF2)n-COO M where M = H+ or any other group where a formal dissociation can be made;"]
["CF3(CF2)n-CH=CH2;"]
["CF3(CF2)n-C(=O)-X, where X is any chemical moiety;"]
["CF3(CF2)m-CH2-X, where X is any chemical moiety; and"]
["CF3(CF2)m-Y-X, where Y = non-S, non-N heteroatom and where X is any chemical moiety."]
["Pls_Select","Please explain:"]
[]
["For additional information, see: "]
["https://www.ecfr.gov/cgi-bin/text-idx?SID=76684cb27df67c7198528a9141582edc&mc=true&node=se40.33.721_110536&rgn=div8. "]
["EUR-Lex - 32021R1297 - EN - EUR-Lex (europa.eu)"]
[]
["Location of material production (Country)"]
[]
["Are you ISO 14001 certified?\n(If yes please provide a copy of the certificate.)",null,null,null,null,null,null,"Pls_Select"]
[]
["Are you ISO 9001 registered?\n(If yes please provide a copy of the certificate.)",null,null,null,null,null,null,"Pls_Select"]
[]
["Are you ISO 13485 registered (standard specifically related to Medical Devices)?\n(If yes please provide a copy of the certificate.)",null,null,null,null,null,null,"Pls_Select"]
[]
[]
["END OF SHEET"]
[]
[]
[]
["END OF SHEET"]

{"sheet":"Phys_Chem_Props","index":4,"n_rows":40,"n_cols":10,"rows_kept":40,"cut":false,"hidden":true,"merged":[[39,0,39,9],[35,5,35,9],[14,6,14,9],[15,5,15,7],[26,5,26,9],[27,5,27,9],[28,5,28,9],[29,5,29,9],[30,5,30,9],[31,5,31,9],[32,5,32,9],[33,5,33,9],[34,5,34,9],[20,1,20,2],[20,3,20,5],[20,6,20,9],[25,0,25,9],[16,1,16,4],[16,6,16,9],[22,1,22,4],[22,6,22,9],[21,5,21,7],[19,0,19,9],[14,1,14,2],[14,3,14,5],[8,0,8,9],[9,3,9,5],[9,7,9,9],[13,0,13,9],[10,0,10,2],[10,3,10,9]]}
["Physical/Chemical Properties"]
[null,null,null,null,null,null,null,null,null,"3M Confidential"]
[]
["Please add the following required physical properties if they do NOT appear on the MSDS"]
[]
["For materials defined as articles, only Physical State is required."]
[]
[]
["Physical State "]
["Solid / Liquid / Gas","Pls_Select","Odor                         ",null,null,null,"Color      "]
["For solid, please specify physical form (e.g. roll, sheet, block, powder etc):     "]
[]
[]
["Specific gravity / Density: "]
["Not applicable: ","Pls_Select"]
["Min:      ",null,"Max:      ",null,"Typical:       ",null,null,null,"Units:      "]
["Conditions:      ",null,null,null,null,"Comment:      "]
[]
[]
["Flash Point: "]
["Not applicable: ","Pls_Select",null,"Specify when there is no flashpoint:"]
["Min:      ",null,"Max:      ",null,"Typical:       ",null,null,null,"Units:      "]
["Conditions:      ",null,null,null,null,"Comment:      "]
[]
[]
["Other possible properties: "]
["Property","Min ","Max ","Typical ","UNITS","Comments"]
["pH","     ","     ","     ","     "]
["Boiling/melting point ","     ","     ","     ","     ","     "]
["Viscosity","     ","     ","     ","     ","     "]
["Solubility in water","     ","     ","     ","     ","     "]
["% Volatile","     ","     ","     ","     ","     "]
["Vapour density","     ","     ","     ","     ","     "]
["Grade","     ","     ","     ","     ","     "]
["     ","     ","     ","     ","     ","     "]
["     ","     ","     ","     ","     ","     "]
[]
[]
[]
["END OF SHEET"]

{"sheet":"Global_Rqmnts","index":5,"n_rows":86,"n_cols":6,"rows_kept":86,"cut":false,"hidden":false,"merged":[[41,0,43,0],[41,3,43,3],[41,4,43,4],[41,5,43,5],[42,1,42,2],[38,0,40,0],[38,3,40,3],[38,4,40,4],[38,5,40,5],[39,1,39,2],[35,0,37,0],[35,3,37,3],[35,4,37,4],[35,5,37,5],[36,1,36,2],[32,0,34,0],[32,3,34,3],[32,4,34,4],[32,5,34,5],[33,1,33,2],[5,0,5,5],[6,0,7,3],[9,1,9,2],[13,0,15,0],[13,3,15,3],[13,4,15,4],[13,5,15,5],[14,1,14,2],[19,0,21,0],[19,3,21,3],[19,4,21,4],[19,5,21,5],[20,1,20,2],[16,0,18,0],[16,3,18,3],[16,4,18,4],[16,5,18,5],[17,1,17,2],[25,0,27,0],[25,3,27,3],[25,4,27,4],[25,5,27,5],[26,1,26,2],[22,0,24,0],[22,3,24,3],[22,4,24,4],[22,5,24,5],[23,1,23,2],[57,0,60,0],[57,1,57,2],[57,3,60,3],[57,4,60,4],[57,5,60,5],[63,3,64,3],[63,4,64,4],[63,5,64,5],[64,1,64,2],[28,3,31,3],[28,4,31,4],[28,5,31,5],[29,1,29,2],[45,5,47,5],[59,1,59,2],[61,3,62,3],[61,4,62,4],[61,5,62,5],[62,1,62,2],[68,2,68,5],[69,2,69,7],[70,1,78,1],[70,5,70,7],[71,5,71,7],[72,5,72,7],[82,1,82,5],[85,0,85,5],[66,1,67,1],[68,1,69,1],[6,4,7,5],[28,0,30,0],[73,5,73,7],[74,5,74,7],[75,2,75,7],[76,2,76,7],[77,2,77,7],[78,2,78,7],[66,0,67,0],[66,2,66,5],[67,2,67,5],[68,0,78,0]]}
["Global Requirements"]
[null,null,null,null,null,"3M Confidential"]
[]
["In addition to inventory listings, please respond to the following questions:"]
[]
["Alternatively, if your material does not contain any of the below listed substances at or above thresholds, you may certify that by confirming the following statement:"]
["Material Certification: After careful review of the below list, the material covered by this RMIF does not contain any of the below listed substances at or above thresholds.",null,null,null,"Please Select."]
[]
[]
["Question","Yes       |         No",null,"CAS #","% Weight","Comments"]
["Does your material contain Tributyl Tin (TBT) and Triphenyl Tin (TPT) Compounds?",null,null,"     ","     ","     "]
["Does your material contain Tributyl Tin Oxide (TBTO)?",null,null,null,"     ","     "]
["Does your material contain any of the following?",null,null,null,null,"Please specify data source and detection limits where applicable"]
["Cadmium (Cd) and Cadmium Compounds"]
[null,"Intentionally added?\nYes         |           No"]
[]
["Lead (Pb) and Lead Compounds",null,null,"     ","     ","     "]
[null,"Intentionally added?\nYes         |           No"]
[]
["Hexavalent Chromium (Cr VI) Compounds",null,null,"     ","     ","     "]
[null,"Intentionally added?\nYes         |           No"]
[]
["Mercury (Hg) and Mercury Compounds",null,null,"     ","     ","     "]
[null,"Intentionally added?\nYes         |           No"]
[]
["Polybrominated Biphenyls (PBB)",null,null,"     ","     ","     "]
[null,"Intentionally added?\nYes         |           No"]
[]
["Polybrominated Diphenylethers (PBDE)",null,null,"     ","     ","     "]
[null,"Intentionally added?\nYes         |           No"]
[]
["If your material contains deca-BDE, pls indicate here:"]
["Di(2-ethylhexyl)phthalate (DEHP)",null,null,"     ","     ","     "]
[null,"Intentionally added?\nYes         |           No"]
[]
["Dibutylphthalate (DBP)",null,null,"     ","     ","     "]
[null,"Intentionally added?\nYes         |           No"]
[]
["Benzylbutylphthalate (BBP)",null,null,"     ","     ","     "]
[null,"Intentionally added?\nYes         |           No"]
[]
["Diisobutyl phthalate (DIBP)",null,null,"     ","     ","     "]
[null,"Intentionally added?\nYes         |           No"]
[]
["If you do not provide information on the RoHS restricted chemicals listed above, you must answer the following question:\n\nDoes your material exceed the maximum concentration level restrictions of RoHS Directive 2011/65/EU including amendment (EU) 2015/863? \n\nThe amended Annex II of the RoHS Directive can be found at:\n“Commission Delegated Directive (EU) 2015/863” on:\n",null,null,"     ","     ","Note: If your product is in compliance with the EU RoHS Directive because it includes materials or components that are exempt applications under EU RoHS, please list these exempt applications.\n\nIf your product contains intentionally added PBDE’s, even if below the 0.1% maximum concentration value, please indicate here."]
["https://ec.europa.eu/environment/waste/rohs_eee/legis_en.htm"]
["3M Corporate EU RoHS Specification is available at:"]
["http://solutions.3m.com/wps/portal/3M/en_US/SD/Supplier/Requirements/SREE/RoHS/"]
["Does your material contain Alkylphenol/ Alkylphenolethoxylates (AP/APE), especially 4-Nonylphenolethoxylates?\n(If yes, please give name and CAS # of chemical)",null,null,null,null,"     "]
["Does your material contain phthalates?   ",null,null,"     ","     ","     "]
["Does your material contain Azo colourants?",null,null,"     ","     ","     "]
["Does your material contain Vinyl Chloride Polymer (PVC)?",null,null,"     ","     ","     "]
["Does your material contain Crystalline silica?",null,null,"     ","     ","     "]
["Does your material contain or come into contact with natural rubber latex or natural rubber?",null,null,"     ","     ","     "]
["Does your material contain or come into contact with gluten?",null,null,"     ","     ","     "]
["Does your material contain substances/materials of human or animal origen (Includes animal tissues, materials directly derived from animals, and highly processed materials such as tallow, fatty acids, stearates, glycerol, lanolin, casein etc.)?"]
["Does your material contain any chemicals listed by the Stockholm Convention on Persistent Organic Pollutants (POPs Treaty)?\n(If yes, please give name and CAS # of chemical)",null,null,"     ","     ","     "]
["Does your material contain any ozone depleting chemicals [ODC’s] as defined by the Montreal Protocol?\n(If yes, please give name and CAS # of chemical)","ODC used in manufacturing process?",null,"     ","     ","     "]
[]
[null,"ODC contained in product?"]
[]
["Does your material contain any Perfluorooctane sulfonates (PFOS) C8F17SO2X (X=OH, Metal Salt (O-M+), halide, amide, and other derivatives including polymers)?",null,null,"     ",null,"     "]
["Note:  If intentionally added, then report regardless of content level. If otherwise present, then threshold level applies.","Threshold:  50 ppm if in a preparation, or 1000 ppm if in an article (not surface treated with PFOS substance), or 1 ug / m2 if used as a surface treatment"]
["Does your material contain any Perfluorooctanoic Acid (PFOA) and Perfluorocarboxilic Acids (PFCA), where the number of perfluorinated carbons is greater than 5?\n\nPFOA and PFCA's include the salts, derivatives and precursors of the perfluorinated acid.\nPFCA precursors are substances reasonably expected to degrade to PFCA's with more than 5 perfluorinated carbons, including fluorotelomers and fluorotelomer derivatives of perfluorinated chain length greater than 5.",null,null,"     ","     ","     "]
["Note:  If intentionally added, then report regardless of content level. If otherwise present, then threshold level applies","Threshold:  50 ppm if in a preparation, or 1000 ppm if in an article (not surface treated with PFCA precursor substances), or 1 ug / m2 if used as a surface treatment"]
["Does your material contain Dimethyl Fumarate?",null,null,"624-49-7"]
["Does your material contain any plant materials or their derivatives (e.g. wood, paper, wood fiber, cellulose, other materials originating from plants)?\n\nFor information pls\nrefer to:","Pls_select","No. We the supplier certify that the supplied product does not contain any plant materials or their derivatives."]
[null,null,"Yes. We the supplier certify that: \n(i) the supplied product contains plant based materials that are legally sourced, harvested and exported from their country of origin; and\n(ii) at 3M’s request we will provide information on genus, species, country of harvest, and other information that may be required by laws on legal harvesting, such as the U.S. Lacey Act, the EU Timber Regulation, the Australia Illegal Logging Act and similar laws.  "]
["Does your material contain any \"necessary\" conflict minerals (tin, tantalum, tungsten or gold) that are “necessary to the functionality” or “necessary to the production” of the supplied product, as explained in the Securities and Exchange Commission final rule at 77 Federal Register 177 (12 September 2012), pp. 56274 - 56365.?","Pls_select","No.  We the supplier certify the supplied product contains no \"necessary\" conflict minerals.  "]
[null,null,"Yes.  We the supplier certify that the supplied product contains \"necessary\" conflict minerals, and that we will provide on request information on conflict minerals smelters and refiners in the relevant supply chains and other information consistent with industry standard conflict minerals reporting templates.\n\nPlease indicate which conflict minerals:"]
[null,null,null,"  YES            ","NO","  If YES, where located in the product?"]
[null,null,"Tin                    "]
[null,null,"Tantalum                  "]
[null,null,"Tungsten                  "]
[null,null,"Gold                "]
[null,null,"3M’s Conflict Minerals Policy applies to the selection and retention of all 3M direct (or “tier one”) suppliers that provide materials that contain tin, tantalum, tungsten and/or gold. "]
[null,null,"For more information on 3M's Conflict Minerals Policy:"]
[null,null,"http://multimedia.3m.com/mws/media/1390294O/conflict-minerals-policy.pdf"]
[null,null,"U.S. conflict minerals requirements cover 3M's global sales, so all suppliers globally must provide the requested information."]
[]
[]
[]
["Any additional Information:"]
[]
[]
["END OF SHEET"]

{"sheet":"USA_Canada","index":6,"n_rows":120,"n_cols":11,"rows_kept":120,"cut":false,"hidden":true,"merged":[[16,9,16,10],[19,1,19,10],[80,1,80,10],[85,1,85,8],[84,9,84,10],[84,1,84,8],[68,9,68,10],[76,1,76,8],[77,1,77,8],[76,9,76,10],[39,1,39,10],[44,1,44,8],[47,1,47,10],[51,1,51,8],[51,9,51,10],[55,1,55,10],[88,1,88,10],[92,1,92,8],[92,9,92,10],[96,1,96,10],[100,1,100,8],[100,9,100,10],[61,9,61,10],[27,9,27,10],[35,9,35,10],[35,1,35,8],[36,1,36,8],[43,1,43,8],[43,9,43,10],[119,0,119,10],[21,1,21,10],[15,1,15,10],[4,9,4,10],[31,1,31,10],[65,1,65,10],[72,1,72,10],[11,1,11,10],[23,3,23,10],[115,1,115,10],[116,1,116,10],[112,1,112,10],[104,1,104,10],[108,1,108,8],[109,1,109,8],[108,9,108,10]]}
["USA & Canada Appendix"]
[null,null,null,null,null,null,null,null,null,null,"3M Confidential"]
[]
[]
["1.","Is your material indicated for use or certified by any of the following organizations?",null,null,null,null,null,null,null,"Pls_Select"]
[]
["-        National Sanitation Foundation (NSF)"]
["-        FDA"]
["-        United States Pharmacopoeia/National Formulary (USP/NF)"]
["-        Any applicable ISO or ASTM standards"]
[null,"If yes, please specify organization and type of indication or limitations for use."]
["     "]
[]
[]
[]
["2.","Does your material contain any EPCRA (SARA) 313 Toxics Release Inventory (TRI) chemicals?"]
[null,"https://www.epa.gov/toxics-release-inventory-tri-program/tri-listed-chemicals",null,null,null,null,null,null,null,"Pls_Select"]
[]
[null,"If yes, please list chemical, CAS# or Category Code (e.g., N090), and % by weight."]
[]
[]
["3.","If imported into the US, what company is the importer of record?  "]
[]
[null,"Company: "]
[]
[]
[]
["4.","Does your material contain any California Proposition 65 Chemicals?",null,null,null,null,null,null,null,"Pls_Select"]
[null,"http://oehha.ca.gov/prop65/prop65_list/Newlist.html"]
[]
[null,"If yes, please list chemical, CAS# and % by weight."]
[]
[]
[]
[]
["5.","Does your material contain any chemicals on a \"Designated List\" as defined in the California Cleaning Product Right to Know Act of 2017?",null,null,null,null,null,null,null,"Pls_Select"]
[null,"https://leginfo.legislature.ca.gov/faces/codes_displayText.xhtml?lawCode=HSC&division=104.&title=&part=3.&chapter=13.&article="]
[]
[null,"If yes, please list chemical, CAS# and % by weight.     "]
[]
[]
[]
[]
["6.","Does your material contain any \"Non-functional Constituents\" as defined in the California Cleaning Product Right to Know Act of 2017?",null,null,null,null,null,null,null,"Pls_Select"]
[null,"https://leginfo.legislature.ca.gov/faces/codes_displayText.xhtml?lawCode=HSC&division=104.&title=&part=3.&chapter=13.&article="]
[]
[null,"If yes, please list chemical, CAS# and % by weight.     "]
[]
[]
[]
[]
["7.","Does your material contain any chemicals on a \"List of Chemicals of Concern\" as defined in New York's Household Cleansing Product Disclosure Program?",null,null,null,null,null,null,null,"Pls_Select"]
[null,"http://www.dec.ny.gov/docs/materials_minerals_pdf/cpidbmps.pdf"]
[]
[null,"If yes, please list chemical, CAS# and % by weight.     "]
[]
[]
[]
[]
["8.","Does your material contain any materials listed on the ..."]
[]
[null,"New Jersey Special Health Hazard Substances at greater than 0.1%?",null,null,null,null,null,null,null,"Pls_Select"]
[null,"https://www.nj.gov/health/workplacehealthandsafety/documents/right-to-know/shhl_alpha.pdf"]
[]
[null,"If yes, please list chemical, CAS# and % by weight.     "]
[]
[]
[]
[null,"Pennsylvania Special Hazardous Substances at greater than 0.01%",null,null,null,null,null,null,null,"Pls_Select"]
[null,"https://www.dli.pa.gov/laws-regs/regulations/r-18/Pages/R-18-Appendix.aspx"]
[]
[null,"If yes, please list chemical, CAS# and % by weight.     "]
[]
[]
[]
[]
["9.","Does your material contain any \"Chemicals of High Concern to Children\" as defined in Washington's Children's Safe Products Act?",null,null,null,null,null,null,null,"Pls_Select"]
[null,"https://ecology.wa.gov/Regulations-Permits/Reporting-requirements/Reporting-for-Childrens-Safe-Products-Act/Chemicals-of-high-concern-to-children"]
[]
[null,"If yes, please list chemical, CAS# and % by weight.     "]
[]
[]
[]
[]
["10.","Does your material contain any \"Chemicals of High Concern to Children\" as defined in Vermont's Chemicals of High Concern to Children's Products Rule?",null,null,null,null,null,null,null,"Pls_Select"]
[null,"http://www.healthvermont.gov/sites/default/files/documents/2016/11/Env_CDP_chemicals_high_concern_childrens_products_rule.pdf"]
[]
[null,"If yes, please list chemical, CAS# and % by weight.     "]
[]
[]
[]
[]
["11.","Does your material contain any \"Chemicals of High Concern to Children\" as defined in Oregon's Toxic Free Kids Act?",null,null,null,null,null,null,null,"Pls_Select"]
[null,"https://secure.sos.state.or.us/oard/viewSingleRule.action?ruleVrsnRsn=250202"]
[]
[null,"If yes, please list chemical, CAS# and % by weight.     "]
[]
[]
[]
[]
["12.","Does your material contain any \"Chemicals of High Concern\" as defined in Maine's Toxic Chemicals in Children's Products Law?",null,null,null,null,null,null,null,"Pls_Select"]
[null,"https://www.maine.gov/dep/safechem/childrens-products/highconcern/index.html"]
[]
[null,"If yes, please list chemical, CAS# and % by weight.     "]
[]
[]
[]
[]
["13.","Does your material contain any phthalates, either limited or prohibited in children's products, under the Consumer Product Safety Improvement Act (CPSIA)?",null,null,null,null,null,null,null,"Pls_Select"]
[null,"https://www.cpsc.gov/Newsroom/News-Releases/2018/CPSC-Prohibits-Certain-Phthalates-in-Childrens-Toys-and-Child-Care-Products"]
[]
[null,"If yes, please list chemical, CAS# and % by weight.     "]
[]
[]
[]
[]
[]
[]
[]
["END OF SHEET"]

{"sheet":"EU","index":7,"n_rows":172,"n_cols":9,"rows_kept":172,"cut":false,"hidden":false,"merged":[[86,1,86,8],[69,1,69,4],[72,1,72,8],[74,1,74,8],[76,7,76,8],[77,7,77,8],[78,7,78,8],[69,5,69,8],[7,1,9,8],[52,1,52,8],[79,7,79,8],[80,7,80,8],[81,7,81,8],[15,1,16,8],[18,1,18,5],[19,4,19,5],[20,4,20,5],[21,4,21,5],[22,4,22,5],[23,4,23,5],[24,4,24,5],[25,4,25,5],[26,4,26,5],[27,4,27,5],[121,1,121,8],[171,0,171,8],[66,1,66,8],[106,1,106,8],[119,1,119,8],[88,1,88,8],[94,1,94,8],[90,1,90,8],[91,1,91,8],[92,1,92,8],[97,1,97,8],[101,1,101,8],[68,5,68,8],[70,1,70,4],[70,5,70,8],[68,1,68,4],[156,1,162,1],[164,1,165,1],[129,1,129,8],[132,1,132,8],[140,1,140,2],[141,1,145,1],[147,1,154,1],[28,4,28,5],[29,4,29,5],[30,4,30,5],[31,4,31,5],[32,4,32,5],[33,4,33,5],[34,4,34,5],[35,4,35,5],[36,4,36,5],[37,4,37,5],[38,4,38,5],[39,4,39,5],[40,4,40,5],[41,4,41,5],[42,4,42,5],[48,4,48,5],[49,4,49,5],[43,4,43,5],[44,4,44,5],[45,4,45,5],[46,4,46,5],[47,4,47,5]]}
["EU Appendix"]
[null,null,null,null,null,null,null,null,"3M Confidential"]
[]
[]
[]
["1.","For a substance or mixture (not an article) please provide the classification per Regulation EC No 1272/2008 (EU GHS / CLP):"]
[]
[]
[]
[]
[]
["1a.","Has the product been notified to the Poison Center submission per CLP Annex VIII requirements, in the harmonized format?"]
[null,"Please select."]
[]
[null,"If exempted, please indicate the reason:"]
[]
[]
[]
["1b.","If product is notified, please indicate the UFI that has been notified by a valid submission for the relevant market placement countries as well as the notified use,\nIf not (e.g. exempted due to transitional period), please add status for old notification if applies:"]
[null,"EU/EEA country","UFI","Poison Center Use Type","Notification in old format (not harmonized)"]
[null,"Austria",null,"Please select.","Please select."]
[null,"Belgium",null,"Please select.","Please select."]
[null,"Bulgaria",null,"Please select.","Please select."]
[null,"Croatia",null,"Please select.","Please select."]
[null,"Cyprus",null,"Please select.","Please select."]
[null,"Czech Republic",null,"Please select.","Please select."]
[null,"Denmark",null,"Please select.","Please select."]
[null,"Estonia",null,"Please select.","Please select."]
[null,"Finland",null,"Please select.","Please select."]
[null,"France",null,"Please select.","Please select."]
[null,"Germany",null,"Please select.","Please select."]
[null,"Greece",null,"Please select.","Please select."]
[null,"Hungary",null,"Please select.","Please select."]
[null,"Iceland",null,"Please select.","Please select."]
[null,"Ireland",null,"Please select.","Please select."]
[null,"Italy",null,"Please select.","Please select."]
[null,"Latvia",null,"Please select.","Please select."]
[null,"Liechtenstein",null,"Please select.","Please select."]
[null,"Lithuania",null,"Please select.","Please select."]
[null,"Luxembourg",null,"Please select.","Please select."]
[null,"Malta",null,"Please select.","Please select."]
[null,"Netherlands",null,"Please select.","Please select."]
[null,"Norway",null,"Please select.","Please select."]
[null,"Poland",null,"Please select.","Please select."]
[null,"Portugal",null,"Please select.","Please select."]
[null,"Romania",null,"Please select.","Please select."]
[null,"Slovakia",null,"Please select.","Please select."]
[null,"Slovenia",null,"Please select.","Please select."]
[null,"Spain",null,"Please select.","Please select."]
[null,"Sweden",null,"Please select.","Please select."]
[]
[]
["2.","Are there any substances in your material listed in Annex XVII of Regulation (EC) No 1907/2006 (“REACH Regulation”) and all its amendments? (Restrictions on the Manufacture, Placing on the Market and Use of Certain Dangerous Substances, Preparations and Articles)"]
[]
[null,"Please select."]
[]
[null,"If yes, please complete the table below if the substance is not already stated in the Composition Appendix."]
[]
[null,"Substance","CAS#","% weight"]
[null,"     ","     ","     "]
[null,"     ","     ","     "]
[null,"     ","     ","     "]
[null,"     ","     ","     "]
[]
[]
[]
["3.","REACH Substances of Very High Concerns (SVHCs)"]
[]
[null,"Does the material contain any of the substances listed on the REACH SVHC Candidate List?",null,null,null,"Please select."]
[null,"What is the status date of the Candidate list your response refers to?",null,null,null,"Please enter date."]
[null,"Has complete 100% composition information been provided on the “Composition” worksheet in this document?",null,null,null,"Please select."]
[]
[null,"You can avoid multiple requests for additional composition information by supplying 3M with 100 % composition (see the Composition tab of the Raw Material Information Form). "]
[]
[null,"If your material or any of its components contains any substance(s) that meet the criteria of Article 57 of REACH please complete the table below:"]
[]
[null,"Substance Name ","CAS Number ","EC Number"," Amount Max % (w/w)","Check Box if Contents Report is based on Test Data","Component","Reason, e.g. CMR"]
[null,"     ",null,"     ","     ","     ","     "]
[null,"     ",null,null,"     ","     ","     "]
[null,"     ",null,"     ","     ","     ","     "]
[null,"     ",null,"     ","     ","     ","     "]
[null,"     ",null,"     ","     ","     ","     "]
[null,"Note: For salts, the information requested and the certification applies to the substances and the possible hydrates of the substances even if not listed separately."]
[]
[null,"As a minimum, please provide 3M with composition information regarding the current version of the candidate list."]
[]
[null,"We expect to receive updated SVHC information within 30 calendar days, in case the product contains one or more of the new substances from the extended Candidate List in a concentration > 0.1% for articles (REACH Art. 33[1]) or intentionally added for chemicals."]
[]
[null,"Substances of very high concern are defined in Article 57 of Regulation (EC) No 1907/2006 (“The REACH Regulation”) and includes substances which are: "]
[]
[null,"1. Carcinogenic, Mutagenic or Toxic to Reproduction (CMR), meeting the criteria for classification in category 1a or 1b in accordance with Regulation (EC) No. 1272/2008, "]
[null,"2. Persistent, Bioaccumulative and Toxic (PBT) or very Persistent and very Bioaccumulative (vPvB) according to the criteria in Annex XIII of the REACH Regulation, and/or "]
[null,"3. Identified, on a case-by-case basis, from scientific evidence as causing probable serious effects to human health or the environment of an equivalent level of concern as those above (e.g. endocrine disrupters (EDCs) or inhalation sensitizers)."]
[]
[null,"The European Chemicals Agency (ECHA) publishes a Candidate List of Substances of Very High Concern (SVHC) according to REACH Art. 59(1) which is typically updated twice a year by the ECHA and can be found on their website:\n"]
[null,"http://echa.europa.eu/web/guest/candidate-list-table"]
[]
[null,"Substances proposed to be placed on the Candidate List are published on the consultation website and the registry of intentions:"]
[null,"http://echa.europa.eu/web/guest/proposals-to-identify-substances-of-very-high-concern"]
[null,"http://echa.europa.eu/addressing-chemicals-of-concern/registry-of-intentions"]
[]
[null,"Since a decision of the European Court of Justice (ECJ) from Sept.10, 2015, the 0.1% threshold for notifying SVHCs in articles applies to “each of the articles incorporated as a component of a complex product” rather than to the entire article:"]
[null,"http://eur-lex.europa.eu/legal-content/EN/TXT/?qid=1449758412607&uri=CELEX:62014CJ0106"]
[]
[]
[]
["4.","Does your material exceed the maximum concentration level restrictions of Annex II of Directive 2011/65/EU including amendment (EU) 2015/863 [Restriction of the Use of Certain Hazardous Substances in Electrical and Electronic Equipment (RoHS)]? \n"]
[]
[null,"Please select."]
[]
[null,"The recast RoHS Directive can be found at: "]
[null,"http://eur-lex.europa.eu/legal-content/EN/TXT/?uri=CELEX:32011L0065"]
[]
[null,"The updated list of restricted substances can be found at: "]
[null,"https://eur-lex.europa.eu/legal-content/EN/TXT/?uri=CELEX:32015L0863"]
[]
[null,"3M expects that all of its RoHS covered supplied materials will conform to the 3M Corporate EU RoHS Specification, which is available at:"]
[null,"http://solutions.3m.com/wps/portal/3M/en_US/SD/Supplier/Requirements/SREE/RoHS/"]
[]
[null,"Note: If your product is in compliance with the EU RoHS Directive because it includes materials or components that are exempt applications under EU RoHS, please list these exempt applications."]
[]
[]
[]
[null,"If your product contains intentionally added PBDE’s, even if below the 0.1% maximum concentration value, please indicate here."]
[]
[null,"Please select."]
[]
[]
[]
["5a.","Does this product contain any intentionally added substance that can be considered a biocide according to EU Regulation 528/2012?"]
[null,"Please select."]
[]
["5b.","If yes, please provide substance name, CAS#, EC Number if relevant and weight %. Please also provide information on the intention to add this substance and select the Main Category and Product Type from the dropdown lists."]
[null,"Substance Name ","CAS Number ","EC Number","Intention for adding substance","Select Main group *","Select Product Type*"]
[null,"     ",null,"     ","     ","     ","     "]
[null,"     ",null,null,"     ","     ","     "]
[null,"     ",null,"     ","     ","     ","     "]
[null,"     ",null,"     ","     ","     ","     "]
[null,"     ",null,"     ","     ","     ","     "]
[]
[null,"* Note the following information for details on Main group and Product Type:"]
[null,"Main group 1: Disinfectants","PT 1","Human hygiene"]
[null,null,"PT 2","Disinfectants and algaecides not intended for direct application to humans or animals"]
[null,null,"PT 3","Veterinary hygiene"]
[null,null,"PT 4","Food and feed area"]
[null,null,"PT 5","Drinking water"]
[]
[null,"Main group 2: Preservatives","PT 6","Preservatives for products during storage"]
[null,null,"PT 7","Film preservatives"]
[null,null,"PT 8","Wood preservatives"]
[null,null,"PT 9","Fibre, leather, rubber and polymerised materials preservatives"]
[null,null,"PT 10","Construction material preservatives"]
[null,null,"PT 11","Preservatives for liquid-cooling and processing systems"]
[null,null,"PT 12","Slimicides"]
[null,null,"PT 13","Working or cutting fluid preservatives"]
[]
[null,"Main group 3: Pest control","PT 14","Rodenticides"]
[null,null,"PT 15","Avicides"]
[null,null,"PT 16","Molluscicides, vermicides and products to control other invertebrates"]
[null,null,"PT 17","Piscicides"]
[null,null,"PT 18","Insecticides, acaricides and products to control other arthropods"]
[null,null,"PT 19","Repellants and Attractants"]
[null,null,"PT 20","Control of other vertebrates"]
[]
[null,"Main group 4: Other biocidal products","PT 21","Antifouling products"]
[null,null,"PT 22","Embalming and taxidermist fluids"]
[]
[]
[null,"Please access more information at the following link:","Product-types"]
[]
[]
["END OF SHEET"]

{"sheet":"REACH","index":8,"n_rows":104,"n_cols":23,"rows_kept":104,"cut":false,"hidden":false,"merged":[[95,7,95,8],[95,9,95,10],[95,0,95,2],[75,3,75,4],[76,3,76,4],[91,7,91,8],[91,9,91,10],[92,7,92,8],[92,9,92,10],[93,7,93,8],[93,9,93,10],[63,1,63,11],[94,7,94,8],[94,9,94,10],[4,0,4,11],[5,0,5,1],[5,2,5,5],[18,2,18,5],[14,2,14,3],[15,2,15,3],[16,2,16,3],[17,2,17,3],[77,3,77,4],[92,5,92,6],[93,5,93,6],[90,7,90,8],[90,9,90,10],[97,8,97,9],[95,5,95,6],[48,1,48,10],[49,1,49,10],[50,1,50,10],[51,1,51,10],[55,1,56,1],[55,2,55,7],[90,5,90,6],[91,5,91,6],[75,0,75,2],[76,0,76,2],[77,0,77,2],[72,1,72,11],[73,1,73,11],[85,1,85,11],[2,0,2,11],[7,0,7,11],[8,0,8,1],[9,0,9,1],[10,0,10,1],[8,2,8,5],[9,2,9,5],[10,2,10,5],[103,0,103,11],[94,5,94,6],[19,2,19,11],[20,2,20,11],[22,2,22,11],[34,1,35,1],[34,3,35,3],[34,4,35,4],[92,0,92,2],[93,0,93,2],[94,0,94,2],[90,0,90,2],[91,0,91,2],[34,5,35,5],[34,6,35,6],[25,1,25,2],[66,1,66,11],[67,1,67,11],[6,0,6,1],[6,2,6,5],[0,0,0,5],[34,7,35,7],[21,2,21,11],[23,1,23,11],[26,4,26,5],[32,0,32,10],[29,1,29,11],[34,2,35,2],[34,8,35,8],[34,9,35,9],[34,10,35,10],[34,11,35,11]]}
["3M REACH Raw Material Questionnaire"]
[null,null,null,null,null,null,null,null,null,"3M Confidential"]
["                         Due to similarity of REACH regulation in EMEA region, this tab covers European Union REACH, United Kingdom REACH and Turkey REACH.  \n                         EU REACH: (EC) No 1907/2006, OJ L 396 30.12.2006, p. 1\n                         UK REACH: UK SI 1144 The REACH etc. (Amendment etc.) (EU Exit) (No. 3) Regulations 2019\n                         TR REACH: KKDIK,Turkey MoEU, O.J. no.30105."]
[]
["Supplier certifies that the following information is accurate and that the person completing this form is authorized to provide this information on behalf of the supplier."]
["Country of supplied material:"]
["Country of manufacture:"]
["If suppplier information is different that the information provided on the Cover Page \"Hub\" tab, please provide the information below."]
["Form Completed by:"]
["Contact details              (email/phone number):"]
["Date: "]
[]
["1.    To which category as defined in the REACH Regulation does the material belong to:"]
[]
[null,"Substance","Please select.",null,"If Yes, please answer below questions"]
[null,"Mixture","Please select.",null,"If Yes, please answer below questions"]
[null,"Article with release","Please select.",null,"If Yes, please answer below questions"]
[null,"Article","Please select.",null,"If Yes, please see applicable sections of the EU tab"]
["Definition:",null,"For the purposes of the Regulation (EC) No 1907/2006:"]
[null,"Substance*","means a chemical element and its compounds in the natural state or obtained by any manufacturing process, including any additive necessary to preserve its stability and any impurity deriving from the process used, \nbut excluding any solvent which may be separated without affecting the stability of the substance or changing its composition;"]
[null,"Mixture","means a mixture or solution composed of two or more substances;"]
[null,"Article with release","is an article which intentionally releases a substance or mixture to fulfill a primary or accessory function of the article"]
[null,"Article without intentional release","is an object which during production is given a special shape, surface or design which determines its function to a greater degree than does its chemical composition (e.g. manufactured goods such as textiles, electronic chips, furniture, books, toys, kitchen equipment)."]
[null,"*Polymers and UVCBs are considered Substances under REACH"]
["2. ","Does the entire material qualify under an exemption according to REACH?"]
[null,"Please select."]
[null,"If Yes, please indicate exemption:",null,null,"Please select."]
[]
[]
["3.","Please complete the table below listing the chemicals names and CAS/EC for components in your material or the intentionally released \nsubstances from the article and please complete the Only Representative information as appropriate."]
[]
["Grandfathering/Notification/Registration"]
["Please confirm in column dedicated to UK that you or your suppliers have grandfathered all substances or have completed DUIN (Downstream User Import Notification) for all substances (i.e. ingredients) contained in this raw material which are subject to UK registration."]
[]
[null,"Substance Name","CAS#","EC# (or index number if EC# cannot be provided)","%Min","%Max","To which category as defined in the REACH Regulation does the component belong to:  Main Constituent* / Additive*  / Impurity*","Constituent Exemption","Confidential (Y/N)","EU REACH Registration number or date of submission of registration dossier ","*UK REACH Registration Number (grandfathered/registered) or date of submission (DUIN)","**TR REACH Registration Number or date of submission of registration dossier",null,"Confidential Y/N"]
[null,null,null,null,null,null,null,null,null,null,null,null,null,"Please select."]
[null,null,null,null,null,null,"Please select.","Please select.","Please select.",null,null,null,null,"Please select.",null,null,null,null,null,null,null,null,"Please select."]
[null,null,null,null,null,null,"Please select.","Please select.","Please select.",null,null,null,null,"Please select.",null,null,null,null,null,null,null,null,"Substance"]
[null,null,null,null,null,null,"Please select.","Please select.","Please select.",null,null,null,null,"Please select.",null,null,null,null,null,null,null,null,"Mixture"]
[null,null,null,null,null,null,"Please select.","Please select.","Please select.",null,null,null,null,"Please select.",null,null,null,null,null,null,null,null,"Polymer"]
[null,null,null,null,null,null,"Please select.","Please select.","Please select.",null,null,null,null,"Please select.",null,null,null,null,null,null,null,null,"Additive"]
[null,null,null,null,null,null,"Please select.","Please select.","Please select.",null,null,null,null,"Please select.",null,null,null,null,null,null,null,null,"Please select."]
[null,null,null,null,null,null,"Please select.","Please select.","Please select.",null,null,null,null,"Please select.",null,null,null,null,null,null,null,null,"Yes"]
[null,null,null,null,null,null,"Please select.","Please select.","Please select."]
[null,"* Please confirm in column dedicated to UK that you or your suppliers have grandfathered / notified all substances (i.e. ingredients) contained in this raw material which are subject to UK registration.",null,null,null,null,null,null,null,null,null,null,null,null,null,null,null,null,null,null,"No"]
[null,"** Please confirm in column dedicated to TR that you or your suppliers have pre-registered / registered or will pre-register / register all substances (i.e. ingredients) contained in this raw material which are subject to TR registration."]
[]
["Definition:",null,null,null,null,null,null,null,null,null,null,null,null,null,null,null,null,null,null,null,"Not Known Yet"]
[null,"Main Constituent:  A constituent, not being an additive or impurity, in a substance that makes a significant part of that substance and is therefore used in substance naming and detailed substance identification."]
[null,"Additive:  A substance that has been intentionally added to stabilize the substance."]
[null,"Impurity:  An unintended constituent present in the substance as manufactured. It may originate from the starting materials or be the result of secondary or incomplete reactions during the manufacture process. While it is present in the final substance, it was not intentionally added."]
[null,"Polymer:  A substance consisting of molecules that contain a sequence of at least 3 monomer units which are covalently bound to at least one other monomer unit or other reactant and: (a) Over 50 percent of the weight for that substance consists of polymer molecules (see definition below); and, (b) The amount of polymer molecules presenting the same molecular weight must be less than 50 weight percent of the substance."]
[null,"Surface-Treated Substance: Substance resulting from treatment of the basis substance with the surface-treating agent."]
[null,"Naturally Occuring Substance: Substances occurring in nature as long as they are not chemically modified, not classified as dangerous in accordance with Directive 67/548/EEC, nor substances of very high concern."]
[]
[null,"Polymer CAS#\nand/or\nSurface-Treated Substance CAS#","Complete the appropriate number of Polymer Building Block Table rows for each Polymer by listing the Polymer Building Blocks (PBB) that are built into the polymer at or above 2% by weight.\nand/or\nComplete the appropriate number of Surface-Treated Substance Table rows for each Surface-Treated Substance by listing the Basis Substance(s) and Surface-Treating Agent"]
[null,null,"PBB/ \nBasis Substance/\nSurfaced-Treating Agent CAS # ","PBB/ \nBasis Substance/\nSurfaced-Treating Agent EC# (or Index Number if EC# cannot be provided)","PBB/ \nBasis Substance/\nSurfaced-Treating Agent\nChemical Name","% Min","% Max","Confidential Y/N","EU REACH Registration number or date of submission of registration dossier ","UK REACH Registration number (grandfathered / registered) or date of submission (DUIN)","TR REACH Registration number or date of submission of registration dossier "]
[null,null,"Please complete for all polymers or surface-treated substances  present in this material","Please complete for all polymers or surface-treated substances present in this material","Please complete for all polymers or surface-treated substances present in this material","Please complete for all polymers or surface-treated substances present in this material","Please complete for all polymers or surface-treated substances present in this material","Please select."]
[null,null,"Please complete for all polymers or surface-treated substances  present in this material","Please complete for all polymers or surface-treated substances present in this material","Please complete for all polymers or surface-treated substances present in this material","Please complete for all polymers or surface-treated substances present in this material","Please complete for all polymers or surface-treated substances present in this material","Please select."]
[null,null,"Please complete for all polymers or surface-treated substances  present in this material","Please complete for all polymers or surface-treated substances present in this material","Please complete for all polymers or surface-treated substances present in this material","Please complete for all polymers or surface-treated substances present in this material","Please complete for all polymers or surface-treated substances present in this material","Please select."]
[null,null,"Please complete for all polymers or surface-treated substances  present in this material","Please complete for all polymers or surface-treated substances present in this material","Please complete for all polymers or surface-treated substances present in this material","Please complete for all polymers or surface-treated substances present in this material","Please complete for all polymers or surface-treated substances present in this material","Please select."]
[null,null,"Please complete for all polymers or surface-treated substances  present in this material","Please complete for all polymers or surface-treated substances present in this material","Please complete for all polymers or surface-treated substances present in this material","Please complete for all polymers or surface-treated substances present in this material","Please complete for all polymers or surface-treated substances present in this material","Please select."]
[]
[null,"Note:  If the polymer(s) have more than 5 PBB's, please insert additional rows and enter the additional PBB information in the table."]
[]
["Definition:"]
[null,"Polymer Building Block:  A substance that is incorporated/built into a polymer backbone (e.g. Monomers or other reactants like crosslinkers, initiators, etc.)."]
[null,"Basis Substance: Substance in the form of particles on which the surface treatment is applied (please include if the basis substance is a nanoform per the EU REACH definition)"]
[null,"Surface-Treating Agent: Substance reacting with the surface of the basis substance, i.e. the substance used as the starting material in the surface-treatment process"]
[]
[]
[null,"Notes:"]
[null,"If a Polymer is made up of other polymers, these must also be broken down into the basic PBB units (e.g., monomers) in the Polymer Building Block Table (there should not be any polymers listed as PBB in the Polymer Building Block Table). "]
[null,"A catalyst, colorant, etc. is not incorporated into polymer backbone, thus is not a PBB.  These ingredients/components should be listed in Composition Table above, not in the Polymer Building Block Table."]
[]
["   Are PBBs/Surface Treated Substances information provided under a CDA?",null,null,"Please select."]
["   CDA Reference Number:"]
["   Date of execution:"]
[]
["4. Only Representative"]
["Have you appointed an Only Representative to deal with all imports of your material into the EU?",null,null,null,null,null,null,"Please select."]
["Have you appointed an Only Representative to deal with all imports of your material into the UK?",null,null,null,null,null,null,"Please select."]
["Have you appointed an Only Representative to deal with all imports of your material into TR?",null,null,null,null,null,null,"Please select."]
[]
[null,"Definition:"]
[null,"Only Representative - A natural or legal person established outside the Community who manufactures a substance on its own, in preparations or in articles, formulates a preparation or produces an article that is imported into the Community may by mutual agreement appoint a natural or legal person established in the Community to fulfill, as his only representative, the obligations on importers under REACH."]
[]
["Only representative contact details :      "]
[]
[null,null,null,null,null,"EU",null,"TR",null,"UK"]
["Supplier/Distributor Name"]
["Supplier Address"]
["Supplier Postal Code"]
["Supplier Country"]
["Product Trade name"]
["Third Party Representative Code",null,null,null,null,"Not Applicable",null,"Not Applicable"]
[]
["Is the Only Representative willing to offer Only Representative coverage to 3M for any jurisdictions where REACH registered above*?",null,null,null,null,null,null,null,"Please select."]
["*A 3M representative may contact you for execution of an Only Representative agreement"]
[]
[]
[]
[]
["END OF SHEET"]

{"sheet":"Asia_Pacific","index":9,"n_rows":31,"n_cols":6,"rows_kept":31,"cut":false,"hidden":true,"merged":[[3,0,3,5],[30,0,30,5],[8,3,8,4],[9,3,9,4],[10,3,10,4],[11,3,11,4],[12,3,12,4],[13,3,13,4],[14,3,14,4],[15,3,15,4],[16,3,16,4],[17,3,17,4],[18,3,18,4],[19,3,19,4],[7,3,7,4],[28,0,28,5]]}
["Asia Pacific Appendix"]
[null,null,null,null,null,"3M Confidential"]
[]
["Please indicate if your material or any of its components appear on any of the following country specific regulations or restricted substance lists indicated in Column 1."]
["If yes, please specify the chemical and the amount present "]
[]
[]
["Present?","Country","Regulation/ Restricted Substance List","Listed?",null,"Details\n(CAS # and amount)"]
["Please select.","China","China GB-12268 1990 List of Dangerous Goods","Please select."]
["Please select.","China","Highly Toxic Goods Catalogue","Please select."]
["Please select.","Hong Kong","Hong Kong - Prohibited Carcinogens","Please select."]
["Please select.","Indonesia","Dangerous Substances List","Please select."]
["Please select.","India","India - Hazardous Chemical Rules - List of Hazardous and Toxic Chemicals","Please select."]
["Please select.","Philippines","Priority Chemical List","Please select."]
["Please select.","Philippines","Substance Controlled by Dangerous Drug Board","Please select."]
["Please select.","Philippines","Substance with Chemical Control Order","Please select."]
["Please select.","Singapore","Hazardous Substances Control List","Please select."]
["Please select.","Thailand","Thailand Hazardous Substances Lists","Please select."]
["Please select.","Taiwan","Toxic Chemical Substances Listing","Please select."]
["Please select.","Vietnam","Vietnam - Prohibited and Strictly Controlled Chemicals","Please select."]
[]
[]
["New Zealand only"]
["Is your material hazardous per New Zealand Hazardous Substances and new organisms criteria?"]
[]
[null,"Please select."]
[]
["If yes, please state which hazard class:      "]
[]
[]
["END OF SHEET"]

{"sheet":"Japan","index":10,"n_rows":71,"n_cols":4,"rows_kept":71,"cut":false,"hidden":true,"merged":[[4,0,4,2],[9,1,9,2],[10,1,10,2],[11,1,11,2],[19,1,19,2],[20,1,20,2],[21,1,21,2],[8,1,8,2],[23,0,23,3],[12,1,12,2],[13,1,13,2],[14,1,14,2],[15,1,15,2],[16,1,16,2],[17,1,17,2],[18,1,18,2]]}
["Japan Appendix"]
[null,null,null,"3M Confidential"]
[]
[]
["Please indicate if your material or any of its components appear on any of the following regulations or restricted substance lists."]
["If yes, please specify the chemical and the amount present "]
[]
[]
["Regulation/ Restricted Substance List","Listed?",null,"Details (CAS # and amount)"]
["Japan, Chemical Substances Control Law (CSCL)\nClass I Specified Chemical Substances","Please select.",null," Law#117 (1973) S/3M: Banned"]
["Japan, Chemical Substances Control Law (CSCL)\nClass II Specified Chemical Substances","Please select.",null," Law#117 (1973) S/3M: Reduced"]
["Japan, Chemical Substances Control Law (CSCL)\nMonitoring Chemical Substances","Please select.",null," Law#117 (1973) S/3M: Observed"]
["Japan, Poisonous Deleterious Substance Control Law\nOther than Specific Poison.","Please select.",null," Law#303 (1950) S/3M: Reduced"]
["Japan, Industrial Safety & Health Law (ISHL)\nBanned Chemical Substance List","Please select.",null," Law# 57 (1972) S/3M: Banned"]
["Japan, Industrial Safety & Health Law (ISHL)\nSpecified Chemical Substances (Class 1, 2, 3)","Please select.",null," Law# 57 (1972) S/3M: Banned"]
["Japan, Industrial Safety & Health Law (ISHL) Organic Solvent Poisoning\nOrganic Solvents","Please select.",null," Law# 57 (1972) S/3M: Reduced"]
["Japan, Industrial Safety & Health Law (ISHL) Notification Chemical Substances","Please select.",null," Law# 57 (1972) S/3M: Notified"]
["Japan - Harmful Substances in Household Products","Please select.",null," Law#112 (1973) S/3M: Banned\n(Designated Household Products only)"]
["Japan, Pollutant Release Transfer Register, Designated Chemical Substances (Class1, 2)","Please select.",null,"Law#86 (1999) S/3M: Informed"]
["Japan, Fire Service Law","Please select.",null,"Law#186 (1948): Reduced"]
["Japan, High Pressure Gas Safety Law","Please select.",null,"Law#204 (1951): Reduced"]
["Japan, Narcotics and Psychotropics Control Law","Please select",null,"Law#14 (1953): Reduced"]
[]
["END OF SHEET"]
[]
[null,"Please select",null,"Please select."]
[null,null,null,"Cat. 1, Oxidizing solids (Type 1)"]
[null,null,null,"Cat. 1, Oxidizing solids (Type 2)"]
[null,null,null,"Cat. 1, Mixture (Type 3)"]
[null,null,null,"Cat. 1, Others (Type 3)"]
[null,null,null,"Cat. 2, Phosphorus sulfide"]
[null,null,null,"Cat. 2, Red phosphorus"]
[null,null,null,"Cat. 2, Sulfur"]
[null,null,null,"Cat. 2, Iron powder"]
[null,null,null,"Cat. 2, Combustible solids (Type 1)"]
[null,null,null,"Cat. 2, Others (Type 1)"]
[null,null,null,"Cat. 2, Metal powder"]
[null,null,null,"Cat. 2, Mixture (Type 2)"]
[null,null,null,"Cat. 2, Inflammable solids"]
[null,null,null,"Cat. 3, Potassium"]
[null,null,null,"Cat. 3, Sodium"]
[null,null,null,"Cat. 3, Alkyl aluminums"]
[null,null,null,"Cat. 3, Alkyl lithiums"]
[null,null,null,"Cat. 3, Yellow phosphorus"]
[null,null,null,"Cat. 3, Type 1"]
[null,null,null,"Cat. 3, Type 2"]
[null,null,null,"Cat. 3, Mixtures"]
[null,null,null,"Cat. 3, Others"]
[null,null,null,"Cat.4, Alcohols"]
[null,null,null,"Cat.4, Special inflam. mat."]
[null,null,null,"Cat.4, Class 1"]
[null,null,null,"Cat.4, Class 1 (Water-soluble)"]
[null,null,null,"Cat.4, Class 2"]
[null,null,null,"Cat.4, Class 2 (Water-soluble)"]
[null,null,null,"Cat.4, Class 3"]
[null,null,null,"Cat.4, Class 3 (Water-soluble)"]
[null,null,null,"Cat.4, Class 4"]
[null,null,null,"Cat.4, Oil extracted from animals and plants"]
[null,null,null,"Design. flam. goods (Comb. liquid)"]
[null,null,null,"Design. flam. goods (Comb. solid)"]
[null,null,null,"Design. flam. goods (Resin, foamed)"]
[null,null,null,"Design. flam. goods (Resin, other)"]
[null,null,null,"Cat. 5, Organic peroxide (Type 1)"]
[null,null,null,"Cat. 5, Type 1 (Other than Organic peroxide)"]
[null,null,null,"Cat 5, Type 2 (Hydrazine derivatives, Hydroxylamine or its salts)"]
[null,null,null,"Cat. 5, Mixtures (Type 2)"]
[null,null,null,"Cat. 5, Other (Type 2)"]
[null,null,null,"Cat. 6, Oxidizing liquids (Perchloric acid, Hydrogen peroxide, Nitric acid）"]
[null,null,null,"Cat. 6, Mixtures"]
[null,null,null,"Cat. 6, Others"]
[null,null,null,"Not Applicable"]

{"sheet":"Korea","index":11,"n_rows":143,"n_cols":10,"rows_kept":143,"cut":false,"hidden":true,"merged":[[77,3,77,4],[78,3,78,4],[142,0,142,9],[69,3,69,4],[70,1,76,1],[70,3,70,4],[71,3,71,4],[72,3,72,4],[73,3,73,4],[74,3,74,4],[75,3,75,4],[76,3,76,4],[63,3,63,4],[64,1,68,1],[64,3,64,4],[65,3,65,4],[66,3,66,4],[67,3,67,4],[68,3,68,4],[57,1,57,9],[58,1,58,3],[60,1,60,9],[61,1,62,1],[61,3,61,4],[62,3,62,4],[32,1,32,9],[42,1,42,9],[43,1,43,9],[47,1,47,3],[49,1,49,9],[29,3,29,4],[24,3,24,4],[25,3,25,4],[26,3,26,4],[27,3,27,4],[15,1,15,5],[16,1,16,5],[17,1,17,5],[21,1,21,9],[28,3,28,4],[0,0,0,5],[2,0,2,11],[3,1,3,9],[23,1,23,9],[4,1,4,9],[5,1,5,9],[6,1,6,9],[7,1,8,5],[7,6,8,6],[7,7,7,9],[9,1,9,5],[10,1,10,5],[11,1,11,5],[12,1,12,5],[13,1,13,5],[14,1,14,5]]}
["Korea Appendix"]
[null,null,null,null,null,null,null,null,null,"3M Confidential"]
[]
["1.","Chemical Control Act"]
[null,"Please indicate if your material or any of its components appear on any of the following regulations or restricted substance lists."]
[null,"If contained \"yes\", please specify the chemical and the amount present."]
[null,"For non-phase-in substances, if trade secret, please state \"trade secret\" under detail column."]
[null,"Regulation/ Restricted Substance List",null,null,null,null,"Contained","Detail"]
[null,null,null,null,null,null,null,"Substance name","CAS #","% weight"]
[null,"Korea, Chemical Control Act - phase-in substance(s)",null,null,null,null,"Please select."]
[null,"Korea, Chemical Control Act - Non phase-in substance(s)",null,null,null,null,"Please select."]
[null,"Korea, Chemical Control Act - Toxic substance(s) (hazardous chemicals)",null,null,null,null,"Please select."]
[null,"Korea, Chemical Control Act - Restricted substance(s) (hazardous chemicals)",null,null,null,null,"Please select."]
[null,"Korea, Chemical Control Act - Prohibited substance(s) (hazardous chemicals)",null,null,null,null,"Please select."]
[null,"Korea, Chemical Control Act - Substance(s) requiring permission (hazardous chemicals)",null,null,null,null,"Please select."]
[null,"Korea, Chemical Control Act - Substance(s) requiring preparation for accidents (hazardous chemicals)",null,null,null,null,"Please select."]
[null,"Korea, Chemical Control Act - CMR substance(s)",null,null,null,null,"Please select."]
[null,"Korea, Chemical Control Act - Substance(s) subject to intensive control",null,null,null,null,"Please select."]
[null,"Note : KR Chemical reference link : https://ncis.nier.go.kr/en/main.do"]
[]
[]
["2.","K-REACH"]
["2a.","K-REACH Only Representative Confirmation"]
[null,"Please complete the table below if appointed Only Representative have proceeded the task performance in accordance with Article 21-2 of enforcement decree of K-REACH."]
[null,null,"Information on Overseas Manufacturer\n(Producer)","Information on Only Representative"]
[null," Company Name"]
[null," Corporate registration no. ","N/A"]
[null," Address"]
[null," Contact person"]
[null," e-mail"]
[]
["2b.","Result of K-REACH Compliance"]
[null,"If your material or any of its components contains any substance(s) that meet the criteria of Article 10 (Registration of Chemical Substance) and Article 11(Exemption from Registration of Chemical Substance) of the K-REACH please complete the table below:"]
[null,"Product or Chemical Name","CAS No.\n(if trade secret, \nstate \"trade secret\")","New or \nexisting Chemical?","Only Representative Certificate No","K-REACH Compliance Category","K-REACH Approval No.","Completed date","Use Category","(if exempted)\nExempted reason"]
[null,null,null,"Please select.",null,null,null,null,"Please  select","Please select."]
[null,null,null,"Please select.",null,null,null,null,"Please  select.","Please select."]
[null,null,null,"Please select.",null,null,null,null,"Please  select.","Please select."]
[null,null,null,"Please select.",null,null,null,null,"Please  select.","Please select."]
[null,null,null,"Please select.",null,null,null,null,"Please  select.","Please select."]
[null,null,null,"Please select.",null,null,null,null,"Please  select.","Please select."]
[]
[]
["3.","K-BPR"]
["3a.","Does this product contain any ingredient purpose/intention that can be considered a biocide according to K-BPR (Consumer Chemical Products and Safety Act)?"]
[null,"Please select."]
[]
["3b.","If yes, please provide the classification per K-BPR definition :"]
[null,"Please select."]
[]
["3c.","If yes, please provide substance name, CAS#, EC Number if relevant and weight %. Please also provide information on the intention to add this substance and select the Main Category and Product Type from the dropdown lists."]
[null,"Substance Name ","CAS Number ","EC Number","Ingredient purpose/ intention","Select Main group *","Select Product Type*"]
[null,"     ",null,"     ","     ","Please select.","Please select."]
[null,"     ",null,null,"     ","Please select.","Please select."]
[null,"     ",null,"     ","     ","Please select.","Please select."]
[null,"     ",null,"     ","     ","Please select.","Please select."]
[null,"     ",null,"     ","     ","Please select.","Please select."]
[]
["3d.","If this product is a biocidal product, please provide Authorization Status:"]
[]
[]
[null,"*Please refer to the following for Main group and Product Type:"]
[null,"Sterilizer","PT 1","Disinfectant"]
[null,null,"PT 2","Algicide"]
[]
[null,"Extirpator","PT 3","Rodenticide"]
[null,null,"PT 4","Other vertebrate extirpator"]
[null,null,"PT 5","Insecticide"]
[null,null,"PT 6","Other invertebrate extirpator"]
[null,null,"PT 7","Repellent"]
[]
[null,"Preservative","PT 8","For product preservation "]
[null,null,"PT 9","For product surface treatment"]
[null,null,"PT 10","For textiles/leather"]
[null,null,"PT 11","For timber"]
[null,null,"PT 12","For building material"]
[null,null,"PT 13","For (raw) material/equipment"]
[null,null,"PT 14","For corpses/taxidermy"]
[]
[null,"Others","PT 15","Antipollution agent for ships and underwater facilities"]
[]
[]
[]
[null,"Use Category"]
[null,"Please  select"]
[null,"1.Absorbents and Adsorbents"]
[null,"2.AdhesiveㆍBinding agents"]
[null,"3.Aerosol propellants"]
[null,"4.Anti-condensation agents"]
[null,"5.Anti-freezing agents"]
[null,"6.Anti-set-off and Anti-adhesive agents"]
[null,"7.Anti-static agents"]
[null,"8.Bleaching agents"]
[null,"9.Cleaning and Washing agents"]
[null,"10.Colouring agents"]
[null,"11.Complexing agents"]
[null,"12.Conductive agents"]
[null,"13.Construction materials additives　"]
[null,"14.Corrosion inhibitors"]
[null,"15.Cosmetics"]
[null,"16.Dust binding agents"]
[null,"17.Electroplating agents"]
[null,"18.Explosives"]
[null,"19.Fertilizers"]
[null,"20.Fillers"]
[null,"21.Fixing agents"]
[null,"22.Flame retardants and Fire preventing agents"]
[null,"23.Flotation agents"]
[null,"24.Flux agents for casting"]
[null,"25.Foaming agents"]
[null,"26.FoodㆍFoodstuff additives"]
[null,"27.Fuel"]
[null,"28.Fuel additives"]
[null,"29.Heat transferring agents"]
[null,"30.Hydraulic fluids and additives"]
[null,"31.Impregnation agents"]
[null,"32.Insulating materials"]
[null,"33.Intermediates"]
[null,"34.Laboratory chemicals"]
[null,"35.Lubricants and additives"]
[null,"36.Non-agricultural pesticides and Disinfectants"]
[null,"37.Odor agents"]
[null,"38.Oxidizing agents"]
[null,"39.pH-Regulating agents"]
[null,"40.Pesticides"]
[null,"41.Pharmaceuticals"]
[null,"42.Photochemicals"]
[null,"43.Process regulators"]
[null,"44.Reducing agents"]
[null,"45.Reprographic agents"]
[null,"46.Semiconductors"]
[null,"47.Softners"]
[null,"48.Solvents"]
[null,"49.Stabilizers"]
[null,"50.Surface-active agents"]
[null,"51.Tanning agents"]
[null,"52.Viscosity adjusters"]
[null,"53.Vulcanizing agents"]
[null,"54.Welding and Soldering agents"]
[null,"55.Others"]
[]
[]
[]
["END OF SHEET"]

{"sheet":"Mexico","index":12,"n_rows":97,"n_cols":6,"rows_kept":97,"cut":false,"hidden":true,"merged":[[76,0,76,5],[78,0,78,5],[21,2,21,4],[13,0,13,5],[26,0,26,5],[36,0,36,5],[46,0,46,5],[15,0,15,4],[6,2,6,4],[7,2,7,4],[19,2,19,4],[20,2,20,4],[73,0,73,5],[6,1,7,1],[96,0,96,5],[94,0,94,2],[80,1,80,3],[81,1,81,3],[82,1,82,3],[83,1,83,3],[84,1,84,3],[89,0,89,5],[93,0,93,2]]}
["Mexico Appendix"]
[null,null,null,null,null,"3M Confidential"]
[]
[]
["Is your material regulated for transportation?"]
[]
[null,"Pls select","    Yes.(Please complete all further sections)"]
[null,null,"    No. (Please go directly to section 2)"]
[]
[]
["Section 1: Transportation Regulatory Information"]
[]
[]
["ALL the information in this section is REQUIRED by our International Trade Area and Distribution Center."]
[]
["US DOT Information (49 CFR 199)      "]
[]
["UN or NA Identification Number       ",null,null,null,"Proper Shipping Name      "]
[]
["Hazard Classification:  Primary      "]
["Hazard Classification:  Secondary      "]
["Hazard Classification:  Tertiary      "]
[]
["Label(s) Required      ",null,null,null,"Packing Group      "]
[]
[]
["INTERNATIONAL AIR TRANSPORT ASSOCIATION (IATA)"]
[]
["UN Identification Number       ",null,null,null,"Proper Shipping Name      "]
[]
["Primary: Class Code      ",null,null,null,"Compatibility Group"]
["Packaging Group",null,null,null,"Class Name"]
[]
["Subsidiary: Class Code         ",null,null,null,"Class Name      "]
[]
[]
["INTERNATIONAL CIVIL AVIATION ORGANIZATION (ICAO)"]
["   "]
["UN Identification Number       ",null,null,null,"Proper Shipping Name      "]
[]
["Primary: Class Code      ",null,null,null,"Compatibility Group"]
["Packaging Group",null,null,null,"Class Name"]
[]
["Subsidiary: Class Code         ",null,null,null,"Class Name      "]
[]
[]
["INTERNATIONAL MARITIME ORGANIZATION (IMO) "]
[]
["UN Identification Number       ",null,null,null,"Proper Shipping Name      "]
[]
["Primary: Class Code      ",null,null,null,"Compatibility Group"]
["Packaging Group",null,null,null,"Class Name"]
[]
["Subsidiary: Class Code         "]
[]
[]
[]
["Section 2: Risk communication codes"]
[]
["HMIS Rating   "]
[]
["Health",null,null,null,"Reactivity"]
["Flammability",null,null,null,"Personal Protection"]
[]
[]
["NFPA Rating   (REQUIRED)"]
[]
["Health",null,null,null,"Reactivity"]
["Fire",null,null,null,"Special Hazard"]
[]
[]
[]
[]
["If any of the material information provided on this form changes, I agree to update and inform 3M Mexico 30 days prior to the change.   "]
[]
[]
["SUPPLIER INFORMATION (To be filled out by supplier)                  "]
[]
["What is the name, address and telephone number of the person to whom future information requests should be sent?     "]
[]
["Nombre:          ",null,null,null,"Posición:         "]
["Email:          ",null,null,null,"Fecha:         "]
["Dirección:       "]
["Ciudad:             ",null,null,null,"Teléfono:        "]
["Estado:            ",null,null,null,"Fax:            "]
[]
[]
["PLEASE SIGN BELOW."]
[]
["Seller agrees not to assert any claim (other than a claim for patent infringement) against 3M Mexico for any use or disclosure of any technical data or information disclosed in connection with this questionnaire."]
[]
[]
[]
["     "]
["Name, Position, Signature",null,null,null,"Date"]
[]
["END OF SHEET"]

{"sheet":"Chemicals_of_Concern","index":13,"n_rows":137,"n_cols":7,"rows_kept":137,"cut":false,"hidden":false,"merged":[[136,0,136,6],[5,0,5,6],[129,0,129,6],[130,0,130,6],[131,0,131,6],[132,0,132,6],[133,0,133,6],[6,0,7,3],[6,4,7,6]]}
["Chemicals of Concern Appendix"]
[null,null,null,null,null,null,"3M Confidential"]
[]
["Please complete the table below. "]
[]
["Alternatively, if your material does not contain any of the below listed substances at or above thresholds, you may certify that by confirming the following statement:"]
["Material Certification: After careful review of the below list, the material covered by this RMIF does not contain any of the below listed substances at or above thresholds.",null,null,null,"Please select."]
[]
[]
[]
["Designated Substance","Threshold1","Does Contain","If contains2 (Indicate CAS number and Amount)","Does Not Contain","Check Box if contents report is based on test Data","Reason Listed3"]
["1.     Asbestos","Intentionally Added",null,null,null,null,"IEC 62474"]
["2.     Azo colorants and azodyes which form certain aromatic amines4","30 ppm ",null,null,null,null,"IEC 62474"]
["3.     1,2-Benzene-dicarboxylic acid, di-C6-8-branched alkyl esters, C7-rich (DIHP)","1000 ppm",null,null,null,null,"IEC 62474"]
["4.     1,2-Benzene-dicarboxylic acid, di-C7-11-branched and linear alkyl esters (DHNUP)","1000 ppm",null,null,null,null,"IEC 62474"]
["5.     Beryllium Oxide (BeO)","1000 ppm",null,null,null,null,"IEC 62474"]
["6.     4-[4,4'-bis(dimethyl-amino) benzhy-drylidene] cyclohexa-2,5-dien-1-ylidene] di-methylammonium chloride (C.I. Basic Violet 3)","1000 ppm",null,null,null,null,"JIG Annex A"]
["7.     4,4'-Isopropylidenediphenol (Bisphenol A or BPA)","20 ppm",null,null,null,null,"Chemical of Interest"]
["8.     Boric acid","1000 ppm",null,null,null,null,"IEC 62474"]
["9.     Brominated Flame Retardants (other than PBBs, PBDEs or HBCDD)","900 ppm total bromine",null,null,null,null,"IEC 62474"]
["10.  Cadmium, cadmium compounds ","10 ppm by weight of battery",null,null,null,null,"IEC 62474"]
["11. Cadmium, cadmium compounds","100 ppm in homogeneous material (non-battery)",null,null,null,null,"IEC 62474"]
["12. Chromium (VI) compounds","1000 ppm in homogeneous material",null,null,null,null,"IEC 62474"]
["13.  Cobalt Dichloride","1000 ppm",null,null,null,null,"IEC 62474"]
["14.  Diarsenic Pentoxide","1000 ppm",null,null,null,null,"IEC 62474"]
["15.  Diarsenic Trioxide","1000 ppm",null,null,null,null,"IEC 62474"]
["16.  Dibutyltin (DBT) compounds","1000 ppm",null,null,null,null,"IEC 62474"]
["17.  Dioctyltin (DOT) compounds","1000 ppm",null,null,null,null,"IEC 62474"]
["18.  Dimethyl fumarate","0.1 ppm",null,null,null,null,"IEC 62474"]
["19.  Disodium tetraborates","1000 ppm",null,null,null,null,"IEC 62474"]
["20.  Fluorinated greenhouse gases (PFC, SF6, HFC)","Intentionally Added",null,null,null,null,"IEC 62474"]
["21.  Formaldehyde","Intentionally Added (composite wood products or components)",null,null,null,null,"JIG Annex A"]
["22.  Formaldehyde","75 ppm by weight of textile product",null,null,null,null,"IEC 62474"]
["23.  Hexabromocyclo-dodecane (HBCDD) and all major diastereoisomers","1000 ppm",null,null,null,null,"IEC 62474"]
["24. Lead/lead compounds","1000 ppm in homogeneous material (except for batteries, cables and children’s articles/toys)",null,null,null,null,"IEC 62474"]
["25.  Lead/lead compounds","100 ppm by weight of children’s product",null,null,null,null,"IEC 62474"]
["26.  Lead/lead compounds","90 ppm in surface coatings for children’s toys/articles",null,null,null,null,"IEC 62474"]
["27.  Lead/lead compounds","300 ppm in cables/cords coatings",null,null,null,null,"IEC 62474"]
["28.  Lead/lead compounds","40 ppm by weight of battery",null,null,null,null,"IEC 62474"]
["29. Lead (II) chromate","1000 ppm",null,null,null,null,"IEC 62474"]
["30. Lead chromate molybdate sulphate red","1000 ppm",null,null,null,null,"IEC 62474"]
["31. Lead sulfochromate yellow","1000 ppm",null,null,null,null,"IEC 62474"]
["32.  Mercury/mercury compounds","Intentionally Added or 1 ppm by weight of battery",null,null,null,null,"IEC 62474"]
["33.  Mercury/mercury compounds","Intentionally Added or 1000 ppm of homogeneous material (non-battery)",null,null,null,null,"IEC 62474"]
["34..  Nickel5","Intentionally Added, where prolonged skin contact is expected",null,null,null,null,"IEC 62474"]
["35.  Ozone Depleting Substance (CFCs, HCFCs, HBFCs, carbon tetrachloride, etc.)","Intentionally Added",null,null,null,null,"IEC 62474"]
["36.  Perchlorates","0.006 ppm",null,null,null,null,"IEC 62474"]
["37.  Perfluorooctane sulfonate (PFOS)","Intentionally Added or 1000 ppm",null,null,null,null,"IEC 62474"]
["38.  Phenol,2-(2H-benzotriazol-2-yl)-4,6-bis(1,1-dimethylethyl) ","Intentionally Added",null,null,null,null,"IEC 62474"]
["39.  Phthalates\nDEHP\nDBP\nBBP","1000 ppm as the sum of the phthalate concentrations",null,null,null,null,"IEC 62474"]
["40.  Phthalates\nDINP\nDIDP\nDNOP","1000 ppm as the sum of the phthalate concentrations ",null,null,null,null,"IEC 62474"]
["41. Di(2-ethylhexyl)phthalate (DEHP)","1000 ppm",null,null,null,null,"IEC 62474"]
["42, Dibutylphthalate (DBP)","1000 ppm",null,null,null,null,"IEC 62474"]
["43, Benzylbutylphthalate (BBP)","1000 ppm",null,null,null,null,"IEC 62474"]
["44, Diisobutyl phthalate (DIBP)","1000 ppm",null,null,null,null,"IEC 62474"]
["45. Polybrominated Biphenyls (PBBs)","1000 ppm in homogeneous material",null,null,null,null,"IEC 62474"]
["46, Polybrominated Diphenylethers (PBDEs)","1000 ppm in homogeneous material",null,null,null,null,"IEC 62474"]
["47.  Polychlorinated Biphenyls (PCBs) and specific substitutes","Intentionally Added",null,null,null,null,"IEC 62474"]
["48.  Polychlorinated Terphenyls (PCTs)","50 ppm",null,null,null,null,"IEC 62474"]
["49.  Polychlorinated Naphthalenes (more than 3 chlorine atoms)","Intentionally Added",null,null,null,null,"IEC 62474"]
["50.  Polyvinyl Chloride PVC","1000 ppm",null,null,null,null,"JIG Annex A"]
["51.  Radioactive substances","Intentionally Added",null,null,null,null,"IEC 62474"]
["52, Refractory Ceramic Fibres (RCF), Aluminosilicate","1000 ppm",null,null,null,null,"IEC 62474"]
["53. Refractory Ceramic Fibres (RCF), Zirconia Aluminosilicate","1000 ppm",null,null,null,null,"IEC 62474"]
["54. Shortchain Chlorinated Paraffins (C10 – C13)","1000 ppm",null,null,null,null,"IEC 62474"]
["55. Strontium chromate","1000 ppm",null,null,null,null,"IEC 62474"]
["56.  Tri-substituted organostannic compounds","Intentionally Added or 1000 ppm",null,null,null,null,"IEC 62474"]
["57.  Certain Tributyl Tin (TBT) and Triphenyl Tin (TPT) Compounds","Intentionally Added",null,null,null,null,"JIG Annex A"]
["58.  Tributyl Tin Oxide (TBTO)","Intentionally Added or 1000 ppm",null,null,null,null,"IEC 62474 and 3M PB listed "]
["59.  Tris (2-chloroethyl) phosphate (TCEP)","1000 ppm",null,null,null,null,"IEC 62474"]
["60. 4-(1,1,3,3-tetramethylbutyl)phenol, (4-tert-Octylphenol)","1000 ppm",null,null,null,null,"IEC 62474"]
["61. Bis(2-methoxyethyl) ether","1000 ppm",null,null,null,null,"IEC 62474"]
["62. Bis(2-methoxyethyl) phthalate","1000 ppm",null,null,null,null,"IEC 62474"]
["63. Pentazinc chromate octahydroxide","1000 ppm",null,null,null,null,"IEC 62474"]
["64. Potassium hydroxyoctaoxodizincate dichromate","1000 ppm",null,null,null,null,"IEC 62474"]
["65. Chlorinated Flame Retardants (CFR)","900 ppm total chlorine",null,null,null,null,"IEC 62474"]
["66. Decabromodiphenyl ether","1000 ppm",null,null,null,null,"IEC 62474"]
["67. Sulfurous acid, lead salt, dibasic","1000 ppm",null,null,null,null,"IEC 62474"]
["68. 1,2-bis(2-methoxyethoxy)ethane (TEGDME; triglyme)","1000 ppm",null,null,null,null,"IEC 62474"]
["69. Trilead dioxide phosphonate","1000 ppm",null,null,null,null,"IEC 62474"]
["70. 1,2-dimethoxyethane; ethylene glycol dimethyl ether (EGDME)","1000 ppm",null,null,null,null,"IEC 62474"]
["71. 4-Aminoazobenzene","1000 ppm",null,null,null,null,"IEC 62474"]
["72. Tetralead trioxide sulfate","1000 ppm",null,null,null,null,"IEC 62474"]
["73. Orange lead (lead tetroxide)","1000 ppm",null,null,null,null,"IEC 62474"]
["74. Pyrochlore, antimony lead yellow","1000 ppm",null,null,null,null,"IEC 62474"]
["75. Pentalead tetraoxide sulphate","1000 ppm",null,null,null,null,"IEC 62474"]
["76. 1,2-Diethoxyethane","1000 ppm",null,null,null,null,"IEC 62474"]
["77. Diboron trioxide","1000 ppm",null,null,null,null,"IEC 62474"]
["78. Dibutyltin dichloride (DBTC)","1000 ppm",null,null,null,null,"IEC 62474"]
["79. Lead cynamidate","1000 ppm",null,null,null,null,"IEC 62474"]
["80. N,N-dimethylformamide","1000 ppm",null,null,null,null,"IEC 62474"]
["81. Silicic acid (H2Si2O5), barium salt (1:1), lead-doped","1000 ppm",null,null,null,null,"IEC 62474"]
["82. 1,2-Benzenedicarboxylic acid, dipentylester, branched and linear","1000 ppm",null,null,null,null,"IEC 62474"]
["83. Diisopentylphthalate (DIPP)","1000 ppm",null,null,null,null,"IEC 62474"]
["84. N-pentyl-isopentylphthalate","1000 ppm",null,null,null,null,"IEC 62474"]
["85. Lead titanium trioxide","1000 ppm",null,null,null,null,"IEC 62474"]
["86. Lead titanium zirconium oxide","1000 ppm",null,null,null,null,"IEC 62474"]
["87. Lead oxide sulfate","1000 ppm",null,null,null,null,"IEC 62474"]
["88. [Phthalato(2-)]dioxotrilead","1000 ppm",null,null,null,null,"IEC 62474"]
["89. Dioxobis(stearato)trilead","1000 ppm",null,null,null,null,"IEC 62474"]
["90. Fatty acids, C16-18, lead salts","1000 ppm",null,null,null,null,"IEC 62474"]
["91. Lead dinitrate","1000 ppm",null,null,null,null,"IEC 62474"]
["92. Di-isodecyl phthalate (DIDP)","Intentionally Added",null,null,null,null,"IEC 62474"]
["93. Di-n-hexyl Phthalate (DnHP)","Intentionally Added or 1000 ppm",null,null,null,null,"IEC 62474"]
["94. Hexahydromethylphthalic anhydride","1000 ppm",null,null,null,null,"IEC 62474"]
["95. Cadmium","1000 ppm",null,null,null,null,"IEC 62474"]
["96. Cadmium oxide","1000 ppm",null,null,null,null,"IEC 62474"]
["97. Dipentyl phthalate (DPP)","1000 ppm",null,null,null,null,"IEC 62474"]
["98. Pentadecafluorooctanoic Acid (PFOA)","1000 ppm",null,null,null,null,"IEC 62474"]
["99. Ammonium pentadecafluorooctanoate (APFO)","1000 ppm",null,null,null,null,"IEC 62474"]
["100. Cadmium sulphide","1000 ppm",null,null,null,null,"IEC 62474"]
["101. Trixylyl phosphate","1000 ppm",null,null,null,null,"IEC 62474"]
["102. Disodium 3,3'-[[1,1'-biphenyl]-4,4'-diylbis(azo)]bis(4-aminonaphthalene-1-sulphonate) (C.I. Direct Red 28)","1000 ppm",null,null,null,null,"IEC 62474"]
["103. Perfluorooctanoic acid (PFOA) and individual salts and esters of PFOA\nIncluding as process impurities or biproducts, as components of articles or preparations and independent of intent.","No de minimus threshold",null,null,null,null,"IEC 62474"]
["104. Imidazolidine-2-thione; (2-imidazoline-2-thiol)","1000 ppm",null,null,null,null,"IEC 62474"]
["105.  Antimony/antimony compounds","1000 ppm",null,null,null,null,"Formerly JIG-B"]
["106.  Arsenic/arsenic compounds other than diarsenic pentoxide and diarsenic trioxide","1000 ppm",null,null,null,null,"Formerly JIG-B"]
["107.  Beryllium/beryllium compounds other than beryllium oxide","1000 ppm",null,null,null,null,"Formerly JIG-B"]
["108.  Bismuth/bismuth compounds","1000 ppm",null,null,null,null,"Formerly JIG-B"]
["109.  Nickel compounds","1000 ppm",null,null,null,null,"Formerly JIG-B"]
["110.  Phthalates (other than DEHP, DBP, BPP, DINP, DIDP, DNOP - please list specific chemical name)","1000 ppm",null,null,null,null,"Formerly JIG-B"]
["111.  Selenium/selenium compounds","1000 ppm",null,null,null,null,"Formerly JIG-B"]
["112.  Nonylphenol, octylphenol and their ethoxylates ","Intentionally Added or 1000 ppm",null,null,null,null,"IEC 62474, Norway Regulation, EU Directive "]
["113.  4,4'-methylenebis(2,6-diethylaniline) (CAS 13680-35-8)",null,null,null,null,null,"3M PB listed substance"]
["114.  Tribromo bisphenol A (phenol, 2,2',6-tribromo-4,4'-isopropylidenedi) (CAS 6386-73-8)",null,null,null,null,null,"3M PB listed substance"]
["115.  Hexachlorobenzene (CAS 118-74-1)",null,null,null,null,null,"3M PB listed substance"]
["116.  (Poly) brominated substances","Intentionally Added",null,null,null,null,"3M Europe"]
[]
[]
["1 If a material/substance is intentionally added, then it needs to be reported regardless of its content level.  If a material/substance is otherwise present, then its threshold level applies."]
["2 “Contain” or “Does Not Contain” means that the material is or is not present at or above the threshold noted above.  If the material contains the substance, please provide the amount, and the Chemical Abstracts Service (CAS) Number of the substance. For these non-RoHS-restricted substances, when a law exists that sets a threshold for a material or chemical, the concentration levels (ppm) should be determined based on the methodology set forth in that law.  When a law does not exist, concentration levels (ppm) should be determined based on the total weight of the product or subpart for which the declaration is being developed.  "]
["3 \"IEC 62474\" means International Electrotechnical Commission, Material Declaration for Products of and for the Electrotechnical Industry (Update released on April 9, 2014). Please refer to IEC 62474 Reference Substances list, which contains non-comprehensive listings of CAS numbers and specific substances if applicable or available for the substances or categories listed in the IEC Declarable Substances list. “JIG Annex A” means the JIG-101 Ed 4.0, March 10, 2011, Joint Industry Guide Material Composition Declaration for Electrotechnical Products, Annex A (Normative) JIG Declarable Substance List.  Suppliers should also refer to the Annex B (Informative) Detailed Substance Lists with CAS Numbers and/or EC Numbers, which contains non-comprehensive listings of CAS numbers and/or EC numbers if applicable or available for the substances or categories listed in Annex A. “Formerly JIG-B” means the September 18, 2007 Joint Industry Guide, JIG-101 A, List B, and “3M PB Listed Substance” means that the substance is contained on 3M’s list of Persistent and Bioaccumulative Substances."]
["4 The European Community's ban applies to azocolorants and azodyes that by reductive cleavage of azo groups may release one of the aromatic amines listed in JIG 101 Ed 4.0 Annex B. The threshold level given applies to these amines, not to the azocolorants and azodyes."]
["5 Nickel alloys are not reportable.  Nickel must be reported in certain regulated applications where it is likely to result in prolonged skin exposure (e.g., an outer enclosure for a portable electronic product designed to be carried).  Use of nickel or nickel in components and parts designed to be located inside the outer enclosure of a product need not be reported."]
[]
[]
["END OF SHEET"]

{"sheet":"Metal_Content","index":14,"n_rows":74,"n_cols":6,"rows_kept":74,"cut":false,"hidden":false,"merged":[[73,0,73,5],[28,0,30,0],[28,3,30,3],[28,4,30,4],[28,5,30,5],[19,0,21,0],[19,3,21,3],[19,4,21,4],[19,5,21,5],[22,5,24,5],[37,5,39,5],[40,0,42,0],[40,3,42,3],[40,4,42,4],[40,5,42,5],[31,0,33,0],[31,3,33,3],[31,4,33,4],[31,5,33,5],[34,5,36,5],[35,1,35,2],[43,3,45,3],[43,4,45,4],[43,5,45,5],[13,4,15,4],[13,5,15,5],[16,0,18,0],[16,3,18,3],[16,4,18,4],[16,5,18,5],[25,0,27,0],[25,3,27,3],[25,4,27,4],[25,5,27,5],[13,3,15,3],[46,5,48,5],[44,1,44,2],[47,1,47,2],[64,3,66,3],[64,4,66,4],[64,5,66,5],[62,1,62,2],[65,1,65,2],[49,3,51,3],[49,5,51,5],[52,3,54,3],[52,4,54,4],[52,5,54,5],[50,1,50,2],[53,1,53,2],[49,4,51,4],[5,0,5,1],[12,1,12,2],[17,1,17,2],[20,1,20,2],[23,1,23,2],[26,1,26,2],[29,1,29,2],[67,0,69,0],[13,0,15,0],[41,1,41,2],[34,0,36,0],[14,1,14,2],[32,1,32,2],[55,0,57,0],[58,0,60,0],[56,1,56,2],[59,1,59,2],[61,0,63,0],[64,0,66,0],[43,0,45,0],[8,0,9,3],[5,3,5,5],[7,0,7,5],[8,4,9,6],[37,0,39,0],[37,3,39,3],[22,0,24,0],[22,3,24,3],[22,4,24,4],[37,4,39,4],[38,1,38,2],[68,1,68,2],[34,3,36,3],[34,4,36,4],[46,0,48,0],[46,3,48,3],[46,4,48,4],[52,0,54,0],[49,0,51,0],[67,5,69,5],[55,3,57,3],[55,4,57,4],[55,5,57,5],[58,3,60,3],[58,4,60,4],[58,5,60,5],[61,3,63,3],[61,4,63,4],[61,5,63,5],[67,3,69,3],[67,4,69,4]]}
["Metal Content Appendix"]
[]
[null,null,null,null,null,"3M Confidential"]
["Please complete the table below. "]
[]
["Has the material been tested for any of the following metals?",null,"Comments:      "]
[]
["Alternatively, if your material does not contain any of the below listed metals, you may certify that by confirming the following statement and proceed to the 'Conflict Mineral' section in the Global Requirements tab."]
["Material Certification: After careful review of the below list, the material covered by this RMIF does not contain any of the below listed metals. ",null,null,null,"Please select."]
[]
[]
[]
["Metal:","Tested?\nYes       |       No",null,"Test Method:\nTCLP / STLC / TTLC / \nOther method_____________","Test Results: Concentration and Units.\n(E.g. ppm)","Detection Limit: Include units.\n(E.g. ppm)"]
["Antimony (Sb)",null,null,null,"     ","     "]
[null,"Intentionally added?\nYes       |        No"]
[]
["Arsenic (As)",null,null,"     ","     ","     "]
[null,"Intentionally added?\nYes       |        No"]
[]
["Barium (Ba)",null,null,"     ","     ","     "]
[null,"Intentionally added?\nYes       |        No"]
[]
["Beryllium (Be)",null,null,"     ","     ","     "]
[null,"Intentionally added?\nYes       |        No"]
[]
["Cadmium (Cd)",null,null,"     ","     ","     "]
[null,"Intentionally added?\nYes       |        No"]
[]
["Chromium (Cr)",null,null,"     ","     ","     "]
[null,"Intentionally added?\nYes       |        No"]
[]
["Chromium +6 (Cr+6)",null,null,"     ",null,"     "]
[null,"Intentionally added?\nYes       |        No"]
[]
["Cobalt (Co)",null,null,"     ","     ","     "]
[null,"Intentionally added?\nYes       |        No"]
[]
["Copper (Cu)",null,null,"     ","     ","     "]
[null,"Intentionally added?\nYes       |        No"]
[]
["Lead (Pb)",null,null,"     ","     ","     "]
[null,"Intentionally added?\nYes       |        No"]
[]
["Manganese (Mn)",null,null,"     ","     ","     "]
[null,"Intentionally added?\nYes       |        No"]
[]
["Mercury (Hg)",null,null,"     ","     ","     "]
[null,"Intentionally added?\nYes       |        No"]
[]
["Molybdenum (Mo)",null,null,"     ","     ","     "]
[null,"Intentionally added?\nYes       |        No"]
[]
["Nickel (Ni)",null,null,"     ","     ","     "]
[null,"Intentionally added?\nYes       |        No"]
[]
["Selenium (Se)",null,null,"     ","     ","     "]
[null,"Intentionally added?\nYes       |        No"]
[]
["Silver (Ag)",null,null,"     ","     ","     "]
[null,"Intentionally added?\nYes       |        No"]
[]
["Thallium (Tl)",null,null,"     ","     ","     "]
[null,"Intentionally added?\nYes       |        No"]
[]
["Vanadium (V)",null,null,"     ","     ","     "]
[null,"Intentionally added?\nYes       |        No"]
[]
["Zinc (Zn)",null,null,"     ","     ","     "]
[null,"Intentionally added?\nYes       |        No"]
[]
[]
[]
[]
["End of sheet"]

{"sheet":"Automotive","index":15,"n_rows":19,"n_cols":17,"rows_kept":19,"cut":false,"hidden":false,"merged":[[16,7,16,10],[18,7,18,10],[2,1,2,7],[4,1,4,13],[9,7,9,10],[10,7,10,10],[12,7,12,10],[14,7,14,10],[6,1,6,9],[7,7,7,9],[7,1,7,6],[6,10,7,13]]}
[null,"Automotive Appendix",null,null,null,null,null,null,null,null,null,null,null,"3M Confidential"]
[]
[null,"Are you TS-16949 and/or EN9100 certified?\n(Please provide a copy of each certificate)",null,null,null,null,null,null,null,"TS16949:","Please select.",null,"EN9100:","Please select.",null,null,"Yes"]
[null,null,null,null,null,null,null,null,null,null,null,null,null,null,null,null,"No"]
[null,"Please review the list of chemicals provided in the GADSL (see link below) to determine whether any of your ingredients with unspecified or undisclosed CAS numbers are listed in the GADSL. If they are listed, please identify them in the table below."]
[]
[null,"Does the material contain any GADSL substances?\n",null,null,null,null,null,null,null,null,"Please select."]
[null,"Global Automotive Declarable Substance List at:",null,null,null,null,null,"http://www.gadsl.org"]
[]
[null,null,"Present?",null,"Intentionally added?",null,null,"Description/ CAS Number",null,null,null,null,"Weight Percent"]
[null,"1. "]
[]
[null,"2. "]
[]
[null,"3. "]
[]
[null,"4. "]
[]
[null,"5. "]

{"sheet":"Health_Care","index":16,"n_rows":72,"n_cols":6,"rows_kept":72,"cut":false,"hidden":false,"merged":[[71,0,71,5],[65,0,65,5],[48,1,48,5],[55,1,55,5],[62,1,62,5],[69,1,69,5],[4,0,4,5],[17,0,17,5],[40,0,40,5],[36,0,36,5],[38,0,38,2],[46,0,46,2],[53,0,53,2],[60,0,60,2],[67,0,67,2],[6,0,6,2],[42,0,42,2],[19,0,19,5],[34,0,34,4]]}
["Health Care Appendix"]
[]
[null,null,null,null,null,"3M Confidential"]
[]
["1.   Does this material contain substances/materials of human or animal origin or come in contact with materials of human or animal origin during its manufacturing process (please consider all potential sources during your investigation – including but not limited to cleaning agents, mold release agents, (fiber) finishes, inks, dyes, adhesives, degreasers, polishing agents, catalysts, storage media, etc)?"]
[]
["Please select."]
[]
["Product component / Material","Origin - Species;\ne.g.  Human/Animal (e.g. cattle) Hair/Tissue/Fluid,  Insect Sourced, Tallow Derived,  Aquatic Sources\n","Origin - Country, Region\ne.g. USA","Amount max % w/w","Process for inactivation of possible pathogenic agents, e.g. Transesterification or Hydrolysis, Saponification.\nPlease provide detailed process conditions, see examples below table.*","Comments; e.g. process certification reference etc."]
[null,"     ","     "]
[]
["     ","     ","     ","     ","     "]
[]
[]
["     ","     ","     ","     ","     "]
["* Example 1: Trans-esterification or hydrolysis at not less than 200°C for not less than 20 minutes under pressure."]
["* Example 2: Saponification with NaOH, 12M, batch process at not less than 95°C for not less than 3 hours."]
["If possible, please also provide a statement certifying the absence of any risk regarding TSE / BSE citing the currently applicable EU legislation."]
[]
["2.    Does this material contain or is there risk of N-nitrosamine compounds being present in this material, taking into consideration the starting materials, reagents, solvents and catalysts used (including but not limited to the following)?"]
[]
["Please select."]
[]
["(NMBA) N-Nitroso-N-methyl-4-aminobutyric acid CAS No. 61445-55-4"]
["(NDEA) N-Nitrosodiethylamine CAS No. 55-18-5 "]
["(NDMA) N-Nitrosodimethylamine CAS No. 62-75-9"]
["(NMPA) N-Nitrosomethylphenylamine CAS No. 614-00-6"]
["(NIPEA) N-Nitrosoisopropylethylamine CAS No. 16339-04-1"]
["(NDIPA) N-Nitrosodiisopropylamine CAS No. 601-77-4"]
["(NDBA) N-Nitrosodibutylamine CAS No. 924-16-3"]
[]
["Control of Nitrosamine Impurities in Human Drugs Guidance for Industry: guidance link:"]
["guidance"]
["If yes, please list chemical, CAS# and % by weight."]
[]
[]
["3.    Do you have a European Pharmacopoeia Commission (EDQM – European Directorate for the Quality of Medicines) certification or other certification documentation for this product/material?"]
[]
["Please select."]
[]
["4.    Do you have other certification for this product/material or any of the ingredients as listed in worksheet 'Composition'?"]
[]
["Please select."]
[]
["5.    Does this product/material contain or come into contact with natural rubber latex?"]
[]
["Please select."]
[]
["Comments:"]
[]
[]
["6.    Does this product/material contain dry natural rubber?"]
[]
["Please select."]
[]
["Comments:"]
[]
[]
["7.    Does this product/material contain or come into contact with colophony and/or its derivatives?"]
[]
["Please select."]
[]
["Comments:"]
[]
[]
["8.    Is this product/material registered as a drug or medical device or otherwise listed specifically for medical or health care use?"]
[]
["Please select."]
[]
["Comments:"]
[]
["END OF SHEET"]

{"sheet":"Separation_Purification","index":17,"n_rows":220,"n_cols":6,"rows_kept":220,"cut":false,"hidden":false,"merged":[[53,0,53,5],[42,4,42,5],[43,4,43,5],[45,0,45,5],[47,0,47,3],[47,4,47,5],[31,0,31,3],[32,0,32,3],[33,0,33,3],[39,4,39,5],[40,4,40,5],[204,0,204,5],[101,0,101,5],[219,0,219,5],[36,0,36,5],[39,0,39,3],[100,0,100,4],[107,0,107,5],[112,0,112,5],[200,0,200,5],[41,4,41,5],[56,0,56,3],[57,0,57,5],[59,0,59,3],[59,4,59,5],[60,0,60,3],[60,4,60,5],[49,0,49,5],[51,0,51,3],[51,4,51,5],[66,0,66,3],[66,4,66,5],[67,0,67,3],[67,4,67,5],[70,0,70,3],[5,0,5,5],[8,0,8,5],[11,0,11,5],[14,0,14,5],[30,0,30,5],[21,0,21,5],[24,0,24,5],[25,0,25,2],[25,4,25,5],[26,0,26,2],[26,4,26,5],[27,0,27,2],[27,4,27,5],[28,0,28,2],[28,4,28,5],[61,0,61,3],[61,4,61,5],[63,0,63,5],[65,0,65,3],[65,4,65,5],[80,0,80,2],[81,0,81,2],[85,0,85,3],[88,0,88,5],[91,0,91,5],[71,0,71,5],[74,0,74,5],[76,0,76,5],[78,0,78,2],[79,0,79,2],[105,0,105,5],[136,0,136,5],[139,0,139,3],[140,0,140,2],[141,0,141,2],[94,0,94,3],[94,4,94,5],[102,0,102,6],[103,0,103,5],[104,0,104,5],[152,0,152,5],[155,0,155,3],[156,0,156,2],[157,0,157,2],[158,0,158,2],[142,0,142,2],[143,0,143,2],[146,0,146,5],[149,0,149,3],[149,4,149,5],[168,0,168,2],[169,0,169,2],[172,0,172,3],[174,0,174,3],[175,0,175,2],[159,0,159,2],[162,0,162,5],[165,0,165,3],[166,0,166,2],[167,0,167,2],[178,0,178,2],[178,4,178,5],[180,0,180,3],[181,0,181,3],[182,0,182,3],[175,4,175,5],[176,0,176,2],[176,4,176,5],[177,0,177,2],[177,4,177,5],[194,0,194,5],[196,0,196,5],[197,0,197,5],[187,0,187,2],[187,4,187,5],[190,0,190,5],[192,0,192,3],[192,4,192,5],[184,0,184,2],[184,4,184,5],[185,0,185,2],[185,4,185,5],[186,0,186,2],[186,4,186,5]]}
["Separation and Purification Appendix"]
[]
[null,null,null,null,null,"3M Confidential"]
[]
["1. EU food contact legislation"]
["Does the material comply with the general requirements of Framework Regulation (EC) No 1935/2004?  "]
[null,"Please select."]
[]
["1a. Is the material manufactured with ‘Good Manufacturing Practice’ as required by EU Regulation 2023/2006?  "]
[null,"Please select."]
[]
["1b. For plastic materials are all starting monomers and additives listed in Regulation (EC) No 10/2011 and all amendments?"]
[null,"Please select."]
[]
["1c. Please list any monomers/additives that have a specific migration limit (SML) or other restriction according to the Regulation (EC) No 10/2011:"]
[]
[null,"Monomer/Additive","CAS #","SML/Restriction"]
[]
[]
[]
[]
["1d. Does the material conform to the requirements of Annex II of Regulation (EU) 10/2011 as amended on plastic materials and articles intended to come into contact with food? "]
[null,"Please select."]
[]
["1e. Please list any Annex II substances, metallic elements and Primary Aromatic Amines (PAA's), intentionally added or known to be present:"]
["Substances",null,null,"CAS #","SML/QM Restriction/Limit of Detection"]
[]
[]
[]
[]
["1f. For non-plastic materials please list any EU member state regulations, Council of Europe resolutions  or other recognized standards that the material is compliant with (E.g  German BfR recommendations):"]
[]
[]
[]
[]
["2. FDA Indirect Food Contact"]
["Is the material compliant with the relevant chapter(s) of the FDA Code of Federal Regulations Title 21?"]
[null,null,null,null,"Please select"]
[]
["If yes, please list the applicable Section(s):      "]
[null," (e.g. Polyolefins 177.1520)"]
[]
[]
[]
[]
["2a. Are there any limitations for Food Types as identified in FDA Title 21 CFR- Table 1--Types of Raw and Processed Foods? "]
[null,null,null,null,"Please select"]
["  If Yes, Please list the Food Type limitations:      "]
[]
["2b. Are there any limitations for Use Conditions identified in FDA Title 21 CFR-Table 2--Condition of use? "]
[null,null,null,null,"Please select"]
["  If Yes, Please list the Use Condition limitations:      "]
[]
["For FDA Food Contact information see:  FDA Food Contact Guidance"]
[]
["3. Japan MHLW - Food Contact Positive Lists"]
["If compliance to Japan's Food Sanitation Law is established, please provide a Declaration of Compliance/Certificate. "]
["3a. Is the base resin(s) of this material compliant with Positive List of Base Polymers?"]
[null,null,null,null,"Please select"]
["If Yes, Please list the Appended Table 1 (1), (2) and/or (3) references:      "]
[]
[]
[]
["3b. Are the additive(s), coating agents etc used in this material listed in the Positive List of Additives authorized for use in the Base Resin(s) of this material?"]
[null,null,null,null,"Please select"]
["If Yes, Please list the Table 2 references"]
[]
[]
[]
["4. China Food Contact"]
["If compliance to GB 4806.1-2016 is established, please provide a Declaration of Compliance/Certificate according to Article 8.3 & 8.4 of the regulation.  "]
["4a. Is the base resin(s) of this material listed in the People's Republic of China National Food Safety Standard on Plastic Resins for Food Contact (GB4806.6 2016)?"]
[null,null,null,null,"Please select"]
[]
["4b. Are the additive(s) present authorized according to the National Standard of the People's Republic of China, National Food Safety Standard on Use of Additives in Food Contact Materials and Articles, GB9685-2016?"]
[null,null,null,null,"Please select"]
["Please list any monomers/additives that have a specific migration limit (SML) or other restriction as defined under Article 2.1 of GB9685-2016:"]
[]
["Monomer/Additive",null,null,"CAS #","SML/QM Restriction"]
[]
[]
[]
[]
["5. United States Pharmacopeia"]
["USP <87> USP <88>"]
["If USP testing has been completed, please provide Test Certificates."]
[]
["USP <87>/ISO 10993-5"]
["Has this material been tested and found to meet the requirements of the USP<87> and/or ISO 10993-5 Biological reactivity extraction tests, in vitro?"]
[null,null,null,null,"Please select"]
["USP <88> Class VI "]
["Has this material been tested and found to meet the requirements of USP<88> guidelines for plastics Class VI at a minimum of 70°C?"]
[null,null,null,null,"Please select"]
[]
["If Yes, please state the extraction conditions used:"]
[]
["6. Animal Derived Substances BSE/TSE"]
["Does the material contain any animal derived ingredients? "]
[null,"Please select."]
["If yes;"]
["6a. What is the source of the animal material (bovine/ovine/porcine etc.):"]
[]
["6b. What is the type of animal derived material e.g. tallow, bones, milk?"]
[]
["6c. What is the country of origin of the animal derived material?"]
[]
["     "]
["6d. In the case of tallow derivatives is the material processed under conditions at least as rigorous as those defined by the European Medicines Agency guidance EMEA 410/01/ Rev 3?"]
[null,"Please select."]
[null,"Comment:"]
[]
["7. Residual Metals"]
["Does the material contain any residual metals as defined by EMEA/CHMP/SWP/4446/2000 and USP<232>:"]
[]
[null,"Metallic Element","Contains ","Threshold in product"]
[null,"Pt","Please select."]
[null,"Pd","Please select."]
[null,"Ir","Please select."]
[null,"Rh","Please select."]
[null,"Ru","Please select."]
[null,"Os","Please select."]
[null,"Mo","Please select."]
[null,"Ni","Please select."]
[null,"Cr","Please select."]
[null,"V","Please select."]
[null,"Cu","Please select."]
[null,"Mn","Please select."]
[null,"Fe","Please select."]
[null,"Zn","Please select."]
[null,"Hg","Please select."]
[null,"As","Please select."]
[null,"Pb","Please select."]
[null,"Cd","Please select."]
[]
[]
["8. USP <467>/ICH Q3C"]
["Does the material contain residual solvents as defined by EMA/CHMP/ICH/82260/2006 (ICH Q3C) and USP<467> ?"]
[" ",null,null,null,"Please select"]
[]
["If Yes, please list the material name, CAS, and amount present:"]
["Residual Solvent",null,null,"CAS #","Amount present"]
[]
[]
[]
[]
["9. USP <661>/USP <665>"]
["Has this material been tested and found to meet the requirements of USP<661> and/or USP <665>?"]
[null,null,null,null,"Please select"]
[]
["If Yes, please indicate which requirements it meets:"]
[]
["10. Nitrosamines, Azoalkyl Compounds, Nitrites, and Nitrates"]
["Does this material contain or is there risk of Nitrosamines, Azoalkyl Compounds, Nitrites, and/or Nitrates being present?"]
[null,null,null,null,"Please select"]
[]
["If Yes, please list the material name, CAS, and amount present:"]
["Substance",null,null,"CAS #","Amount present"]
[]
[]
[]
[]
["11. Aflatoxin/Mycotoxin"]
["Does this material contain Aflatoxins and/or Mycotoxins?"]
[null,null,null,null,"Please select"]
[]
["If Yes, please list the material name, CAS, and amount present:"]
["Substance",null,null,"CAS #","Amount present"]
[]
[]
[]
[]
["12. US EPA FIFRA "]
["Does this material contain a Pesticide/antimicrobial/biocide?",null,null,null,"Please select"]
[]
["If Yes, please list the material name, CAS, and amount present:"]
["Pesticide/antimicrobial/biocide",null,null,"CAS #","Amount present"]
[]
[]
[]
[]
["13. Phosphite Stabilizers"]
["Does the material contain Phosphite Stabilizers, e.g. Irgafos?",null,null,null,"Please select"]
["If yes, please indicate the substance below:"]
[]
["Phosphite Stabilizer",null,null,"CAS #","Amount present"]
[]
[]
[]
[]
["14. Medical, Pharmaceutical or Food Contact Application Restrictions"]
["Does this material have restrictions for use in Medical, Pharmaceutical or Food Contact Applications e.g. active pharma ingredient (API) manufacturing or infant formula processing?"]
[null,null,null,null,"Please select"]
["If Yes, please indicate the restrictions:"]
[]
["Does this material require approval for use in medical, pharma or food contact applications?"]
[null,null,null,null,"Please select"]
["If Yes, please provide a contact name or attach information regarding your approval process."]
[]
[]
["15. Allergens"]
["Does the material contain any allergens as defined by Annex IIIa of European Directive 2000/13/EC as amended by Directive 2007/68/EC? "]
[null,"Please select."]
[]
["16. Genetically Modified Organisms (GMOs)"]
["Does the material contain any GMOs as defined by Article 2(2) of European Directive 2001/18/EC? "]
[null,"Please select."]
[]
["17. Other Restricted Substances"]
["Does the material contain any of the following substances listed below:"]
[]
[null,"Metallic Element","Contains ","Threshold in product"]
[null,"Phthalates","Please select."]
[null,"Bisphenol A (BPA)","Please select."]
[null,"Natural latex","Please select."]
[null,"Melamine","Please select."]
[null,"Silicone","Please select."]
[null,"Materials derived from the Jatropha plant","Please select."]
[]
[]
["END OF SHEET"]

{"sheet":"REF","index":18,"n_rows":46,"n_cols":1,"rows_kept":46,"cut":false,"hidden":false,"merged":[]}
["References"]
[]
[]
[]
["1 AICS online"]
["http://www.nicnas.gov.au/regulation-and-compliance/aics/aics-search-page"]
["http://www.nicnas.gov.au/"]
[]
["2 Canada DSL/NDSL "]
["http://www.ec.gc.ca/lcpe-cepa/default.asp?lang=En&n=B5AAA7E8-1&wsdoc=5C83F588-8BC0-6BDE-FC86-C80F5B2D14FC"]
[]
["3 IECSC Inventory of Existing Chemical Substance in China"]
["http://www.cirs-reach.com/China_Chemical_Regulation/China_Chemical_Inventory_IECSC_Inventory.html"]
[]
["4 European Chemicals Agency (ECHA)"]
["https://echa.europa.eu/information-on-chemicals"]
[]
["5 National Institute of Technology and Evaluation (METI/CSCL inventory)"]
["http://www.safe.nite.go.jp/english/db.html"]
[]
["6 MHLW/ISHL inventory (Japanese only)"]
["http://www.cirs-reach.com/Japan_CSCL/Japan_Industrial_Safety_and_Health_Law_ISHL.html"]
[]
["7 Korean Existing Chemicals Inventory (KECI/KECL)"]
["http://ncis.nier.go.kr/en/main.do"]
[]
["8RoHS Directive (Recast)"]
["http://eur-lex.europa.eu/legal-content/EN/TXT/?uri=CELEX:32011L0065"]
[]
["9 California Proposition 65 Chemicals"]
["http://oehha.ca.gov/prop65/prop65_list/Newlist.html"]
[]
["10 New Jersey Special Health Hazard Substances"]
["http://web.doh.state.nj.us/rtkhsfs/rtkhsl.aspx"]
[]
["11 Pennsylvania Special Hazardous Substances "]
["http://www.dli.state.pa.us/portal/server.pt/community/l_i_home/5278"]
[]
["12 Taiwan Chemical Substance Inventory (TCSI)"]
["https://csnn.osha.gov.tw/content/home/Substance_Home.aspx"]
[]
["13 USA (TSCA)"]
["https://www.epa.gov/tsca-inventory"]
[]
["14 UK REACH Guidance"]
["https://www.hse.gov.uk/brexit/uk-reach-additional-guidance.pdf"]

{"sheet":"Template History","index":19,"n_rows":22,"n_cols":3,"rows_kept":22,"cut":false,"hidden":true,"merged":[]}
["Template History"]
[]
["Template Owner: Winfried Gatzweiler, PRL HealthCare (IPD & C3SD), Neuss, Germany"]
[null,"mail:","wgatzweiler@mmm.com"]
[null,"phone:","+49 2131 14-4525"]
[]
["Version","Date","Changes, Actions"]
["V 1.01","Dec. 2013","Creation based on existing global 3M RMIF V 1.14 July 2013 (Word-File)"]
["V 1.02","2014-03-13","Automotive Appendix received from Hendrik Fischer and added as worksheet"]
["V 1.02","2014-03-13","Inclusion of 3M Supplier Standards"]
["V 1.03","2014-03-27","Moved Conflict Minerals to Global and updated per Legal Reqest (SBS)"]
["V 1.04","2014-04-10","Minor fixes (WG)"]
["V 1.05","2014-04-16","Update of timber/plant material questions per Dawn Krüger mail 15Apr2014 (WG)"]
["V 1.06","2014-05-02","Example (cellulose) added to timber/plant material question (WG)"]
["V 1.07","2014-05-23","Appendix names on Cover Sheet with Hyperlinks to Appendices (WG)"]
["V 1.08","30.May 14","Update of Chemicals_of_Concern acc to Brent Magnusson (WG)"]
["V 1.09","2014-06-02","Minor chnages to footnote 3 of Chemicals_of_Concern acc to Brent Magnusson (WG)"]
["V 1.10","2014-06-09","Minor updates to Conflict Minerals section per Nancy Walsh"]
["V 1.11","2014-06-24","Conflict Minerals question in GlobalReq_Appendix only (WG)"]
["V 1.12",null,"Little fixes (WG)"]
["V 1.13","2014-07-30","Major technical 'repairs' (WG)"]
["V 1. 14 ","2014-08-22","US Children's Appendix added"]